Cogmind - Beta 14 @@@ ROGUE MODE // 2024.10.06 @ 14:07:50 Player: Syanka Result: Escaped! Performance ------------- Evolutions (9) 4500 Regions Visited (36) 7200 Robots Destroyed (200) 1000 Value Destroyed (5795) 5795 Prototype IDs (92) 1840 Alien Tech Used (1) 200 Bonus (6015) 6015 TOTAL SCORE: 26550 Bonus ------- High Alert Combat Kills 40 Follower Combat Kills 617 Aligned with FarCom 300 Met Data Miner 300 Met Imprinter 300 Met Zhirov 300 Met Warlord at Base 500 MAIN.C Attacked Warlord 500 Warlord Defense Kills 520 Win 3000 Friendly Fire -362 Cogmind --------- Core Integrity 1481/1600 Matter 300/300 Energy 118/190 System Corruption 5% Temperature Cool (10) Movement Flying (25) Location To Epsilon Eridani Parts ------- > --- POWER (2) -------- Light Quantum Reactor > --- PROPULSION (10) -- Xenon Bombardment Thruster Cooled Field Propulsion Drive Field Propulsion Array Electron Diverter Improved Diametric Drive > --- UTILITY (11) ----- Structural Scanner Experimental Optical Array Advanced Signal Interpreter Advanced Transmission Jammer ECM Suite Advanced Cloaking Device Experimental Utility Shielding Experimental Hacking Suite Experimental Hacking Suite Advanced System Shield Advanced System Shield > --- WEAPON (2) ------- Enhanced Nova Cannon Plasma Lance > --- INVENTORY (5) ---- Fusion Compressor Advanced Cooling System Stasis Canceller Gamma Bomb Array Enhanced Force Lance Peak State ------------ > --- POWER ------------ Light Antimatter Reactor Light Quantum Reactor > --- PROPULSION ------- Xenon Bombardment Thruster Impulse Thruster Cooled Field Propulsion Drive Field Propulsion Array Q-thruster Q-thruster Q-thruster Electron Diverter Improved Diametric Drive > --- UTILITY ---------- Structural Scanner Experimental Optical Array Advanced Signal Interpreter Advanced Transmission Jammer ECM Suite Advanced Cloaking Device Experimental Utility Shielding Experimental Hacking Suite Experimental Hacking Suite Advanced System Shield Advanced System Shield > --- WEAPON ----------- Enhanced Nova Cannon Plasma Lance > --- INVENTORY -------- Fusion Compressor Advanced Cooling System Stasis Canceller Gamma Bomb Array Enhanced Force Lance [Rating: 176] Favorites ----------- Power Light Fission Core Engine Light Angular Momentum Engine Power Core Light Fission Core Reactor Light Antimatter Reactor Propulsion Cooled VTOL Module Flight Unit Cooled VTOL Module Utility Experimental Hacking Suite Device Structural Scanner Storage Small Battery Processor Enhanced Optical Array Hackware Experimental Hacking Suite Protection Experimental Utility Shielding Weapon Power Sword Energy Gun Beamcaster Energy Cannon Neutron Cannon Ballistic Gun Assault Rifle Ballistic Cannon Light Cannon Launcher Long-range Missile Launcher Special Weapon Mining Laser Impact Weapon Powered Hammer Slashing Weapon Power Sword Piercing Weapon Plasma Lance Special Melee Weapon Dirty Datajack Build | -11 -10 -10 -10 -9 -8 -7 -7 -7 -7 -7 -7 -6 -6 -6 -6 -6 -6 -6 -5 -5 -5 -5 -5 -5 -5 -4 -4 -4 -4 -4 -4 -4 -3 -3 -2 -1 ------- Run | Yrd Mat Min Exi Min Mat Fac Was Fac Low Low Dat Pro Fac Was Fac Low Low Zio Pro Fac Was Fac Upp Upp Zhi Pro Fac Was Fac Upp Upp War Pro Res Res Acc Slots Evolved 18 | . . . . . 4 2 . . . . . . 2 . . . . . . 2 . . . . . . 2 . . . . . . 2 2 2 Power 1 | . . . . . 1 . . . . . . . . . . . . . . . . . . . . . . . . . . . . . . . Propulsion 8 | . . . . . 2 . . . . . . . 1 . . . . . . 1 . . . . . . . . . . . . . 2 . 2 Utility 9 | . . . . . 1 2 . . . . . . 1 . . . . . . 1 . . . . . . 2 . . . . . . . 2 . Weapon . | . . . . . . . . . . . . . . . . . . . . . . . . . . . . . . . . . . . . . Parts Attached 498 | 2 19 7 4 4 21 30 10 23 4 . . 5 32 2 40 3 . 7 11 11 5 15 11 6 11 . 39 4 38 14 7 18 11 58 12 14 Power 66 | . 2 . . . 4 6 . 7 . . . 1 6 . 7 . . . . 2 . 1 . 1 5 . 9 1 2 . . 3 . 3 3 3 Engine 23 | . 2 . . . 4 3 . 4 . . . . 2 . 5 . . . . 1 . 1 . . . . . . . . . . . . . 1 Core 30 | . . . . . . 3 . 3 . . . 1 4 . 2 . . . . 1 . . . 1 3 . 7 1 2 . . 2 . . . . Reactor 13 | . . . . . . . . . . . . . . . . . . . . . . . . . 2 . 2 . . . . 1 . 3 3 2 Propulsion 82 | . 5 . . 1 5 3 . 5 . . . . 7 . 4 . . . . 2 . 4 . . . . 7 . 11 . . 1 . 22 1 4 Treads . | . . . . . . . . . . . . . . . . . . . . . . . . . . . . . . . . . . . . . Leg . | . . . . . . . . . . . . . . . . . . . . . . . . . . . . . . . . . . . . . Wheel . | . . . . . . . . . . . . . . . . . . . . . . . . . . . . . . . . . . . . . Hover . | . . . . . . . . . . . . . . . . . . . . . . . . . . . . . . . . . . . . . Flight 82 | . 5 . . 1 5 3 . 5 . . . . 7 . 4 . . . . 2 . 4 . . . . 7 . 11 . . 1 . 22 1 4 Utility 189 | 1 2 . 4 . 3 13 4 8 4 . . 2 14 2 24 3 . 5 6 2 . 6 5 2 4 . 16 3 20 4 5 4 . 18 5 . Device 106 | 1 1 . 2 . . 5 3 4 4 . . . 10 2 16 3 . 4 3 2 . 4 2 2 2 . 4 3 10 2 3 2 . 9 3 . Storage 3 | . . . . . . . . . . . . . . . . . . . 1 . . . . . 1 . . . . . . . . 1 . . Processor 18 | . 1 . . . 2 . . . . . . 1 1 . . . . 1 . . . 1 . . . . 2 . 2 1 . 2 . 3 1 . Hackware 23 | . . . . . . 5 . 2 . . . . . . 5 . . . . . . 1 2 . . . 5 . 1 . . . . 1 1 . Protection 39 | . . . 2 . 1 3 1 2 . . . 1 3 . 3 . . . 2 . . . 1 . 1 . 5 . 7 1 2 . . 4 . . Artifact . | . . . . . . . . . . . . . . . . . . . . . . . . . . . . . . . . . . . . . Weapon 161 | 1 10 7 . 3 9 8 6 3 . . . 2 5 . 5 . . 2 5 5 5 4 6 3 2 . 7 . 5 10 2 10 11 15 3 7 Energy Gun 9 | . . . . . 3 1 2 . . . . . . . . . . 1 . . . . . . . . . . . 1 . . . 1 . . Energy Cannon 30 | . . . . . . . 1 . . . . . . . . . . . 1 . 1 1 1 1 . . 2 . 2 2 . 3 5 5 1 4 Ballistic Gun 8 | 1 2 3 . . . 1 . . . . . . . . . . . . . . . . 1 . . . . . . . . . . . . . Ballistic Cannon 3 | . . 1 . . 1 . . . . . . . . . . . . . . . 1 . . . . . . . . . . . . . . . Launcher 25 | . 3 1 . 1 1 . . . . . . 1 1 . 2 . . . 1 1 . . . 1 1 . 2 . . 3 1 2 2 1 . . Special Weapon 11 | . 5 2 . 1 . . . . . . . . 1 . . . . . . 1 . . . . . . . . . . . . . 1 . . Impact Weapon 4 | . . . . 1 1 . . 1 . . . 1 . . . . . . . . . . . . . . . . . . . . . . . . Slashing Weapon 42 | . . . . . 3 6 3 2 . . . . 3 . 3 . . 1 3 3 3 3 3 1 1 . 2 . 2 . . . . . . . Piercing Weapon 28 | . . . . . . . . . . . . . . . . . . . . . . . . . . . 1 . 1 4 1 5 4 7 2 3 Special Melee Weapon 1 | . . . . . . . . . . . . . . . . . . . . . . . 1 . . . . . . . . . . . . . Unidentified Prototypes 44 | . . . . . 3 2 2 1 . . . . 1 1 1 . . 1 3 . . 2 . . 4 . 6 1 3 . . 7 . 5 1 . Corrupted Parts 1 | . . . . . . . . . . . . . . . . . . . 1 . . . . . . . . . . . . . . . . . System Corruption 1 | . . . . . . . . . . . . . . . . . . . 1 . . . . . . . . . . . . . . . . . Parts Lost 35 | . . 2 . . . 2 . 3 . . 2 . 1 . 1 . . . 1 . . . 1 . . . 2 . . . . . 6 7 . 7 Power 10 | . . . . . . . . 2 . . . . . . 1 . . . 1 . . . . . . . 1 . . . . . 2 . . 3 Propulsion 14 | . . . . . . . . 1 . . . . . . . . . . . . . . . . . . 1 . . . . . 2 6 . 4 Utility 6 | . . . . . . 2 . . . . 2 . 1 . . . . . . . . . 1 . . . . . . . . . . . . . Weapon 5 | . . 2 . . . . . . . . . . . . . . . . . . . . . . . . . . . . . . 2 1 . . Highest Loss Streak 4 | . . 2 . . . 1 . 2 . . 2 . 1 . 1 . . . 1 . . . 1 . . . 1 . . . . . 3 4 . 2 To Critical Strikes . | . . . . . . . . . . . . . . . . . . . . . . . . . . . . . . . . . . . . . Average Slot Usage (%) 94 | . 86 93 85 85 84 92 94 92 100 100 100 93 99 100 99 99 100 99 99 98 100 99 99 100 100 100 95 93 93 94 93 94 88 86 91 91 Engine 3 | . 11 14 14 14 18 6 . 7 . . . . 3 6 8 6 6 6 6 4 5 5 5 5 1 . . . . . . . . . . . Core 6 | . . . . . . 7 15 6 15 15 15 15 9 6 3 6 6 6 6 4 5 5 5 5 9 11 9 9 9 10 10 10 5 . . . Reactor 1 | . . . . . . . . . . . . . . . . . . . . . . . . . . . . . . . . . . 8 8 7 Flight 30 | . 24 28 28 28 33 30 30 30 30 30 30 30 32 33 32 33 33 33 33 34 35 35 35 35 35 35 27 26 26 26 26 26 25 32 30 32 Device 13 | . 22 28 23 14 9 9 7 14 15 15 15 . 15 20 18 12 13 12 12 16 17 16 12 11 9 5 10 10 10 10 9 10 10 10 15 16 Processor 4 | . 3 . . . 6 1 . . . . . 3 4 6 6 6 6 6 6 5 5 5 5 5 5 5 5 5 5 5 5 5 5 5 5 8 Hackware 19 | . . . . . . 22 29 23 23 23 23 23 19 13 14 20 20 20 20 17 17 17 20 23 23 23 26 26 26 26 26 26 26 18 17 16 Protection 2 | . . . 4 14 9 2 . . . . . 4 . . . . . . . . . . . . 1 5 5 5 4 5 5 5 5 2 4 4 Slashing Weapon 6 | . . . . . 5 7 3 6 7 7 7 7 12 13 12 13 13 12 12 10 10 10 10 6 10 5 5 5 3 . . . . . . . Piercing Weapon 2 | . . . . . . . . . . . . . . . . . . . . . . . . . . . . 5 6 9 9 9 5 5 7 6 Peak Build Rating 176 | 2 7 10 11 12 29 48 50 51 53 51 51 55 73 75 77 77 77 81 81 87 87 95 97 97 97 96 118 121 135 133 133 146 136 146 156 176 Average Rating 86 | 1 6 6 6 9 20 42 48 46 51 51 50 51 67 71 69 76 77 76 76 82 85 89 93 95 94 96 112 117 131 132 132 134 128 125 148 164 On Entrance 73 | . 2 7 6 7 11 24 48 49 51 51 51 46 55 72 72 73 77 77 77 68 85 85 91 95 95 96 96 118 118 133 133 133 136 87 146 156 Naked Turns . | . . . . . . . . . . . . . . . . . . . . . . . . . . . . . . . . . . . . . Heaviest Build 54 | 3 8 8 8 8 14 20 23 20 19 19 19 21 25 25 32 24 24 24 24 22 22 30 30 34 34 28 30 24 27 28 28 31 36 48 50 54 Greatest Support 59 | 3 8 8 8 8 19 22 24 23 21 21 23 21 31 31 32 26 26 26 26 34 34 42 42 42 34 42 43 37 52 42 42 44 53 52 58 59 Greatest Overweight (x) 4 | . . . . . 1 . 1 . . . . . . . 1 . . . . . . . . . . . 1 . . . . . 4 2 . . Average Overweight (x) . | . . . . . . . . . . . . . . . . . . . . . . . . . . . . . . . . . . . . . Largest Inventory Capacity 5 | 5 5 5 5 5 5 5 5 5 5 5 5 5 5 5 5 5 5 5 5 5 5 5 5 5 5 5 5 5 5 5 5 5 5 5 5 5 Average Capacity 5 | 5 5 5 5 5 5 5 5 5 5 5 5 5 5 5 5 5 5 5 5 5 5 5 5 5 5 5 5 5 5 5 5 5 5 5 5 5 Most Carried 5 | 3 5 5 5 5 5 5 5 5 5 5 5 5 5 5 5 5 5 5 5 5 5 5 5 5 5 5 5 5 5 5 5 5 5 5 5 5 Average Carried 4 | 1 4 4 4 4 4 4 5 4 4 5 5 4 4 5 4 5 5 5 4 4 5 4 4 4 4 5 4 5 4 5 5 4 4 4 4 5 Final Capacity 5 | 5 5 5 5 5 5 5 5 5 5 5 5 5 5 5 5 5 5 5 5 5 5 5 5 5 5 5 5 5 5 5 5 5 5 5 5 5 Final Carried 5 | 2 5 4 5 5 5 5 5 5 5 5 5 5 5 5 5 5 5 5 5 5 5 5 4 5 5 5 5 5 5 5 5 5 4 5 5 5 Class Distribution -------------------- 35% | Hacker-Sprinter 27% | Wizard-Ninja 13% | Hacker-Ninja 5% | Wizard-Sprinter 5% | Mutant 3% | Machinist-Ninja Dominant Class ---------------- Mutant | -10/Materials Mutant | -10/Mines Mutant | -10/Exiles Mutant | -9/Mines Sprinter | -8/Materials Hacker-Sprinter | -7/Factory Hacker-Sprinter | -7/Waste Hacker-Sprinter | -7/Factory Hacker-Sprinter | -7/Lower Caves Hacker-Sprinter | -7/Lower Caves Hacker-Sprinter | -7/Data Miner Hacker-Sprinter | -6/Proximity Caves Hacker-Sprinter | -6/Factory Machinist-Sprinter | -6/Waste Hacker-Ninja | -6/Factory Hacker-Sprinter | -6/Lower Caves Hacker-Sprinter | -6/Lower Caves Hacker-Sprinter | -6/Zion Hacker-Sprinter | -5/Proximity Caves Hacker-Ninja | -5/Factory Hacker-Ninja | -5/Waste Hacker-Ninja | -5/Factory Hacker-Sprinter | -5/Upper Caves Hacker-Sprinter | -5/Upper Caves Hacker-Sprinter | -5/Zhirov Hacker-Sprinter | -4/Proximity Caves Wizard-Ninja | -4/Factory Wizard-Ninja | -4/Waste Wizard-Ninja | -4/Factory Wizard-Sprinter | -4/Upper Caves Wizard-Sprinter | -4/Upper Caves Wizard-Sprinter | -4/Warlord Wizard-Mutant | -3/Proximity Caves Hacker-Ninja | -3/Research Hacker-Ninja | -2/Research Wizard-Ninja | -1/Access Resources | -11 -10 -10 -10 -9 -8 -7 -7 -7 -7 -7 -7 -6 -6 -6 -6 -6 -6 -6 -5 -5 -5 -5 -5 -5 -5 -4 -4 -4 -4 -4 -4 -4 -3 -3 -2 -1 ----------- Run | Yrd Mat Min Exi Min Mat Fac Was Fac Low Low Dat Pro Fac Was Fac Low Low Zio Pro Fac Was Fac Upp Upp Zhi Pro Fac Was Fac Upp Upp War Pro Res Res Acc Matter Collected 6391 | 277 239 120 85 40 299 296 101 266 133 17 . 48 375 . 441 63 84 80 90 140 80 150 85 55 185 25 470 . 479 119 242 240 121 680 63 203 Remotely . | . . . . . . . . . . . . . . . . . . . . . . . . . . . . . . . . . . . . . Salvage Created 8080 | 90 297 9 . . 250 450 564 349 50 . . 77 300 . 649 . . . 70 185 328 89 29 53 380 76 352 . 738 171 57 210 175 1133 242 707 Parts 473 | 16 27 5 . . 19 26 2 26 1 . . 10 30 . 49 . . . 5 14 2 10 1 6 3 7 22 . 34 13 6 8 7 68 14 42 Haulers Intercepted 9 | . . . . . 1 3 . . . . . . . . 2 . . . . 1 . . . . . . 1 . 1 . . . . . . . Recyclers Shooed 4 | 1 3 . . . . . . . . . . . . . . . . . . . . . . . . . . . . . . . . . . . Parts Field Recycled . | . . . . . . . . . . . . . . . . . . . . . . . . . . . . . . . . . . . . . Retrieved Matter . | . . . . . . . . . . . . . . . . . . . . . . . . . . . . . . . . . . . . . Parts Self-Destructed 70 | . . . . . . . . . 12 . . 7 . . . . 7 . 12 . . . . 4 2 5 . . . 9 6 . 6 . . . Prevented 4 | . . . . . . . . . . . . . . . . . 3 . 1 . . . . . . . . . . . . . . . . . Kills | -11 -10 -10 -10 -9 -8 -7 -7 -7 -7 -7 -7 -6 -6 -6 -6 -6 -6 -6 -5 -5 -5 -5 -5 -5 -5 -4 -4 -4 -4 -4 -4 -4 -3 -3 -2 -1 ------- Run | Yrd Mat Min Exi Min Mat Fac Was Fac Low Low Dat Pro Fac Was Fac Low Low Zio Pro Fac Was Fac Upp Upp Zhi Pro Fac Was Fac Upp Upp War Pro Res Res Acc Combat Hostiles Destroyed 99 | . 8 3 . . 5 1 . 2 1 . . 5 5 . 8 . . . 5 . . . 1 5 . 8 1 . 2 9 4 4 9 9 . 4 Melee 25 | . . . . . . 1 . 2 1 . . 1 5 . 1 . . . 1 . . . 1 . . . 1 . 2 . . . 1 5 . 3 Guns 1 | . 1 . . . . . . . . . . . . . . . . . . . . . . . . . . . . . . . . . . . Cannons 8 | . . . . . . . . . . . . . . . . . . . . . . . . . . . . . . . . . 3 4 . 1 AOE 65 | . 7 3 . . 5 . . . . . . 4 . . 7 . . . 4 . . . . 5 . 8 . . . 9 4 4 5 . . . Classes Destroyed 17 | 1 5 . . . 4 1 . 1 . . . . . . . . . . . . . . . . . . 1 . . 1 . 2 . 1 . . Worker 4 | . 1 1 . . . . . 1 . . . . 1 . . . . . . . . . . . . . . . . . . . . . . . Builder 11 | . . . . . 1 . . 2 . . . . . . 5 . . . . 1 . . . . . . 1 . . . . . . . . 1 Tunneler 7 | 5 . . . . 1 . . . . . . . . . . . . . . . . . . . . . . . 1 . . . . . . . Hauler 9 | . . . . . 1 3 . . . . . . . . 2 . . . . 1 . . . . . . 1 . 1 . . . . . . . Recycler 11 | . 2 . . . . 1 . 1 . . . . . . 1 . . . . . . . . . . . . . 2 . . . . 1 1 2 Carrier 1 | . . . . . . . . . . . . . . . . . . . . . . . . . . . . . . . . . . 1 . . Minesweeper 1 | . . . . . . . . . . . . . . . . . . . . . . . . . . . . . . 1 . . . . . . Mechanic 2 | . . . . . 1 . . . . . . . . . . . . . . . . . . . . . . . . . . . . 1 . . Operator 9 | . 1 . . . 2 . . 1 . . . . . . 1 . . . . . . . . . . . 1 . 1 . . . . 2 . . Drone 3 | . . . . . . . . . . . . . . . . . . . . . . . . . . . 1 . . . . . 2 . . . Watcher 46 | . 1 . . . 3 5 . 3 . . . . 3 . 2 . . . . 2 . 3 . . . . 5 . 5 . . . . 8 3 3 Swarmer 69 | . 8 3 . . 3 . . . . . . 4 2 . 7 . . . 4 . . . 1 5 . 8 . . . 9 4 . 5 6 . . Grunt 10 | . . . . . 2 . . 1 1 . . . . . . . . . . . . . . . . . . . 2 . . 3 1 . . . Protector 1 | . . . . . . . . . . . . . . . . . . . . . . . . . . . . . . . . 1 . . . . Sentry 3 | . . . . . . 1 . . . . . . . . . . . . . . . . . . . . . . . . . . 1 . . 1 Hunter 1 | . . . . . . . . . . . . . . . . . . . . . . . . . . . . . . . . 1 . . . . Programmer 13 | . . . . . . . . 1 . . . 1 3 . 1 . . . 1 . . . . . . . . . . . . . . 3 . 3 Best Kill Streak 7 | 4 4 4 . . 7 1 . 2 1 . . 4 2 . 4 . . . 4 6 . 2 2 5 . 4 2 . 2 5 4 4 4 6 1 3 Combat Bots Only 5 | . 3 3 . . 5 1 . 1 1 . . 4 2 . 4 . . . 4 . . . 1 5 . 4 1 . 1 5 4 4 4 5 . 2 Max Kills in Single Turn 4 | 1 3 3 . . 2 1 . 1 1 . . 2 1 . 3 . . . 2 1 . 1 1 3 . 4 1 . 1 3 4 3 2 1 1 1 Gunslinging . | . . . . . . . . . . . . . . . . . . . . . . . . . . . . . . . . . . . . . Exploded 4 | . 3 2 . . 1 . . . . . . 2 . . 3 . . . 2 . . . . 3 . 4 . . . 3 4 3 2 . . . Melee 1 | . . . . . . 1 . 1 1 . . 1 1 . 1 . . . 1 . . . 1 . . . 1 . 1 . . . 1 1 . 1 Uniques/NPCs Destroyed . | . . . . . . . . . . . . . . . . . . . . . . . . . . . . . . . . . . . . . Combat | -11 -10 -10 -10 -9 -8 -7 -7 -7 -7 -7 -7 -6 -6 -6 -6 -6 -6 -6 -5 -5 -5 -5 -5 -5 -5 -4 -4 -4 -4 -4 -4 -4 -3 -3 -2 -1 -------- Run | Yrd Mat Min Exi Min Mat Fac Was Fac Low Low Dat Pro Fac Was Fac Low Low Zio Pro Fac Was Fac Upp Upp Zhi Pro Fac Was Fac Upp Upp War Pro Res Res Acc Hostile Shots Fired 623 | . 26 7 . . 18 26 . 130 . 9 4 18 39 . 25 . 1 . 18 . . 2 4 10 . 13 27 1 10 9 14 5 54 74 . 79 Missed 307 | . 10 . . . 11 18 . 70 . 6 2 11 18 . 15 . . . 7 . . 1 1 7 . 11 19 . 4 4 9 3 21 18 . 41 Damage Taken 6413 | . 138 185 . . 94 80 . 902 . 18 95 106 291 . 241 . 22 . 185 . . 18 57 50 . 93 193 38 189 90 92 46 981 1352 . 857 Core 1797 | . 47 34 . . 21 5 . 333 . 18 . 32 62 . 22 . 22 . 41 . . 18 16 12 . 31 . 38 91 16 18 22 255 524 . 119 Absorbed by Shields 34 | . . . . . . . . 22 . . . . . . . . . . . . . . . . . . . . . . . 12 . . . . Redirected to Shielding 234 | . . . . . 4 . . . . . . . 38 . . . . . . . . . . . . . 20 . 19 4 . . 21 106 . 22 Regen/Repaired (Parts) 940 | . 14 . . . . . . 131 . . . . 21 . 102 . . . . 50 . 20 . . . . 99 . 140 . . . . 282 . 81 Core Remaining (%) 79 | 100 . . . 67 96 . . . . . . 44 . . . . . . 82 . . . . . . 92 . . . . . . 61 59 100 92 Volleys Fired 282 | 19 40 3 . . 18 . 16 . . . . 4 1 . 6 . . . 3 . 3 2 4 10 . 6 8 . 2 10 1 13 55 20 . 38 Largest 2 | 1 2 1 . . 1 . 2 . . . . 1 1 . 1 . . . 1 . 1 1 1 1 . 1 1 . 1 1 1 1 2 1 . 1 Hottest 150 | 20 120 30 . . 75 . 150 . . . . 39 5 . 43 . . . 43 . 90 90 90 90 . 43 90 . 90 105 43 105 148 105 . 120 Shots Fired 302 | 19 45 3 . . 18 . 31 . . . . 4 1 . 6 . . . 3 . 3 2 4 10 . 6 8 . 2 10 1 13 56 20 . 37 Gun 77 | 19 18 . . . 9 . 31 . . . . . . . . . . . . . . . . . . . . . . . . . . . . . Cannon 140 | . . . . . . . . . . . . . . . . . . . . . 3 2 4 7 . . 8 . 2 3 . 9 45 20 . 37 Launcher 64 | . 7 3 . . 9 . . . . . . 4 . . 6 . . . 3 . . . . 3 . 6 . . . 7 1 4 11 . . . Special 21 | . 20 . . . . . . . . . . . 1 . . . . . . . . . . . . . . . . . . . . . . . Kinetic 37 | 19 18 . . . . . . . . . . . . . . . . . . . . . . . . . . . . . . . . . . . Thermal 193 | . 20 . . . 4 . 31 . . . . . . . . . . . . . 3 2 4 7 . . 8 . 2 3 . 7 45 20 . 37 Explosive 64 | . 7 3 . . 9 . . . . . . 4 . . 6 . . . 3 . . . . 3 . 6 . . . 7 1 4 11 . . . Electromagnetic 5 | . . . . . 5 . . . . . . . . . . . . . . . . . . . . . . . . . . . . . . . Entropic 2 | . . . . . . . . . . . . . . . . . . . . . . . . . . . . . . . . 2 . . . . Robot Hit Streak 15 | 4 7 1 . . 4 . 15 . . . . . 1 . 2 . . . 5 . 8 . . . . 1 . . . 3 . 1 4 2 . 3 Robot Miss Streak 3 | 3 3 2 . . 2 . 2 . . . . 1 . . . . . . . . . . . 1 . 1 1 . . 2 . 2 2 2 . 1 Penetration Max . | . . . . . . . . . . . . . . . . . . . . . . . . . . . . . . . . . . . . . Secondary Targets . | . . . . . . . . . . . . . . . . . . . . . . . . . . . . . . . . . . . . . Shots Hit Robots 328 | 12 12 1 . . 20 24 23 18 2 . 1 3 26 . 28 . . . 7 5 3 4 1 . 11 2 20 . 23 6 . 2 12 35 7 20 Core Hits 232 | 5 18 4 . . 17 9 4 5 1 . . 7 6 . 21 . . . 4 3 1 2 1 6 2 10 11 . 10 13 5 17 15 20 3 12 Critical Kills . | . . . . . . . . . . . . . . . . . . . . . . . . . . . . . . . . . . . . . Critical Parts Destroyed 3 | . 1 . . . 1 . . 1 . . . . . . . . . . . . . . . . . . . . . . . . . . . . Critical Strikes 29 | . 1 . . . 1 4 4 3 . . . 1 1 . 1 . . . 1 . . 1 . . . . 1 . 2 . . 1 . 4 1 2 Burn 4 | . . . . . . . 4 . . . . . . . . . . . . . . . . . . . . . . . . . . . . . Destroy 1 | . 1 . . . . . . . . . . . . . . . . . . . . . . . . . . . . . . . . . . . Smash 2 | . . . . . 1 . . 1 . . . . . . . . . . . . . . . . . . . . . . . . . . . . Sever 12 | . . . . . . 4 . 2 . . . 1 1 . 1 . . . 1 . . 1 . . . . 1 . . . . . . . . . Impale 9 | . . . . . . . . . . . . . . . . . . . . . . . . . . . . . 2 . . . . 4 1 2 Sunder 1 | . . . . . . . . . . . . . . . . . . . . . . . . . . . . . . . . 1 . . . . Melee Attacks 798 | . . . . . 24 96 . 66 4 . 22 3 104 . 84 . . 1 6 19 . 21 4 . 12 . 82 . 87 6 2 2 4 80 22 47 Impact 18 | . . . . . 3 . . 9 1 . 3 1 1 . . . . . . . . . . . . . . . . . . . . . . . Slashing 529 | . . . . . 21 96 . 57 3 . 19 2 103 . 84 . . 1 6 19 . 21 4 . 12 . 70 . 11 . . . . . . . Piercing 251 | . . . . . . . . . . . . . . . . . . . . . . . . . . . 12 . 76 6 2 2 4 80 22 47 Sneak Attacks 56 | . . . . . 2 4 . 6 . . 1 . 5 . 8 . . . . 2 . 1 . . . . 6 . 9 1 . . 1 5 1 4 Combat Hostiles 2 | . . . . . . . . . . . . . . . . . . . . . . . . . . . . . 1 . . . 1 . . . Follow-up Attacks 26 | . . . . . . . . . 1 . . 1 5 . 7 . . . . 1 . 1 1 . 1 . 1 . 3 . . . . . 3 1 Damage Inflicted 23635 | 154 541 167 . . 1265 1624 503 1336 99 . 71 449 1293 . 2081 . . . 665 356 116 246 46 331 912 634 1509 . 1665 1170 204 1066 1196 2244 419 1273 Guns 918 | 154 140 . . . 121 . 503 . . . . . . . . . . . . . . . . . . . . . . . . . . . . . Cannons 1027 | . . . . . . . . . . . . . . . . . . . . . 116 . . . . . . . . . . 176 216 252 . 267 Explosions 6324 | . 401 167 . . 586 . . . . . . 338 . . 544 . . . 491 . . . . 331 . 634 . . . 843 204 890 895 . . . Melee 15361 | . . . . . 558 1624 . 1336 99 . 71 111 1293 . 1537 . . . 174 356 . 246 46 . 912 . 1509 . 1665 327 . . 80 1992 419 1006 Ramming 5 | . . . . . . . . . . . . . . . . . . . . . . . . . . . . . . . . . 5 . . . Kinetic 294 | 154 140 . . . . . . . . . . . . . . . . . . . . . . . . . . . . . . . . . . . Thermal 1374 | . . . . . 20 . 503 . . . . . . . . . . . . . 116 . . . . . . . . . . . 216 252 . 267 Explosive 6324 | . 401 167 . . 586 . . . . . . 338 . . 544 . . . 491 . . . . 331 . 634 . . . 843 204 890 895 . . . Electromagnetic 101 | . . . . . 101 . . . . . . . . . . . . . . . . . . . . . . . . . . . . . . . Impact 396 | . . . . . 76 . . 216 57 . . 47 . . . . . . . . . . . . . . . . . . . . . . . . Slashing 9425 | . . . . . 482 1624 . 1120 42 . 71 64 1293 . 1537 . . . 174 356 . 246 46 . 912 . 1342 . 116 . . . . . . . Piercing 5540 | . . . . . . . . . . . . . . . . . . . . . . . . . . . 167 . 1549 327 . . 80 1992 419 1006 Entropic 176 | . . . . . . . . . . . . . . . . . . . . . . . . . . . . . . . . 176 . . . . Highest Corruption 6 | . . . . . . 3 3 4 4 4 4 6 . . 1 1 1 1 3 . . . . . . . . . 5 5 5 5 5 4 . 5 Average Corruption 3 | . . . . . . 2 3 3 4 4 4 5 . . 1 1 1 1 2 . . . . . . . . . 5 5 5 5 5 3 . 3 Corruption Purged . | . . . . . . . . . . . . . . . . . . . . . . . . . . . . . . . . . . . . . Corruption Blocked . | . . . . . . . . . . . . . . . . . . . . . . . . . . . . . . . . . . . . . Effects 162 | . . . . . . 10 5 54 4 2 3 5 . . 11 . . . 2 . . . . . . . . . 29 10 7 . 2 9 . 9 Message Errors 36 | . . . . . . 3 2 12 1 . 1 1 . . 2 . . . . . . . . . . . . . 5 2 1 . . 3 . 3 Matter Fused 42 | . . . . . . 2 . 14 2 . 1 3 . . 3 . . . . . . . . . . . . . 9 1 3 . 1 . . 3 Heat Flow Errors 26 | . . . . . . 3 . 5 . . 1 . . . 1 . . . 1 . . . . . . . . . 7 2 1 . . 5 . . Energy Discharges 20 | . . . . . . 1 . 7 1 . . . . . 2 . . . . . . . . . . . . . 3 2 2 . . . . 2 Parts Rejected 2 | . . . . . . . . 1 . . . . . . 1 . . . . . . . . . . . . . . . . . . . . . Parts Fused 3 | . . . . . . . . . . 1 . . . . 1 . . . . . . . . . . . . . 1 . . . . . . . Data Loss (minor) 23 | . . . . . . 1 1 14 . . . 1 . . . . . . 1 . . . . . . . . . 2 2 . . 1 . . . Data Loss (major) 5 | . . . . . . . . . . 1 . . . . 1 . . . . . . . . . . . . . 1 1 . . . 1 . . Alerts 3 | . . . . . . . 1 1 . . . . . . . . . . . . . . . . . . . . 1 . . . . . . . Weapon Failures 2 | . . . . . . . 1 . . . . . . . . . . . . . . . . . . . . . . . . . . . . 1 Overload Shots . | . . . . . . . . . . . . . . . . . . . . . . . . . . . . . . . . . . . . . Overflow Damage 3422 | . 6 11 . . 228 113 . 529 2 . 11 . 365 . 256 . . . 122 82 . 74 . . 343 . 75 . 265 205 . 45 69 484 137 . Projectiles 33 | . . . . . . . . . . . . . . . . . . . . . . . . . . . . . . . . 18 4 11 . . Explosions 310 | . 6 11 . . 47 . . . . . . . . . 16 . . . 93 . . . . . . . . . . 45 . 27 65 . . . Melee 3079 | . . . . . 181 113 . 529 2 . 11 . 365 . 240 . . . 29 82 . 74 . . 343 . 75 . 265 160 . . . 473 137 . Knockbacks 1 | . . . . . . . . 1 . . . . . . . . . . . . . . . . . . . . . . . . . . . . Impact 1 | . . . . . . . . 1 . . . . . . . . . . . . . . . . . . . . . . . . . . . . Kinetic . | . . . . . . . . . . . . . . . . . . . . . . . . . . . . . . . . . . . . . Secondary . | . . . . . . . . . . . . . . . . . . . . . . . . . . . . . . . . . . . . . Self-Inflicted Damage 218 | . 13 47 . . 22 . . . . . . . . . . . . . . . . . . . . 65 . . . 15 . 23 33 . . . Shots 9 | . 1 2 . . 1 . . . . . . . . . . . . . . . . . . . . 2 . . . 1 . 1 1 . . . Rammed 1 | . . . . . . . . . . . . . . . . . . . . . . . . . . . . . . . . . 1 . . . Targets Rammed 1 | . . . . . . . . . . . . . . . . . . . . . . . . . . . . . . . . . 1 . . . Kicked . | . . . . . . . . . . . . . . . . . . . . . . . . . . . . . . . . . . . . . Crushed . | . . . . . . . . . . . . . . . . . . . . . . . . . . . . . . . . . . . . . Highest Temperature 302 | . 86 . . . 137 216 219 256 . . 151 20 52 99 190 77 97 131 245 156 . 51 37 302 . 59 60 . 221 162 160 159 154 264 . 160 Average Temperature 39 | . 23 . . . 41 20 56 46 . . 65 12 28 60 24 24 32 35 33 77 . 26 19 133 . 27 17 . 80 55 81 70 45 61 . 54 Received Heat Transfer 572 | . . . . . 27 . . 162 . . . . 9 . 9 . 9 . . . . 9 . . . . 9 . 49 . 18 13 150 9 . 99 Siege Activations . | . . . . . . . . . . . . . . . . . . . . . . . . . . . . . . . . . . . . . Robots Corrupted 1 | . . . . . 1 . . . . . . . . . . . . . . . . . . . . . . . . . . . . . . . Combat Hostiles . | . . . . . . . . . . . . . . . . . . . . . . . . . . . . . . . . . . . . . Parts Fried 2 | . . . . . 2 . . . . . . . . . . . . . . . . . . . . . . . . . . . . . . . Impact Corruptions 6 | . . . . . 3 . . 3 . . . . . . . . . . . . . . . . . . . . . . . . . . . . Robots Melted . | . . . . . . . . . . . . . . . . . . . . . . . . . . . . . . . . . . . . . Combat Hostiles . | . . . . . . . . . . . . . . . . . . . . . . . . . . . . . . . . . . . . . Parts Melted 2 | . . . . . . . . . . . . . . . . . . . . . . . . . . . . . . . . . . 1 . 1 Heat Transferred 1887 | . . . . . 37 . 1184 . . . . . . . . . . . . . . . . . . . . . . . . . 222 259 . 185 Parts Sabotaged . | . . . . . . . . . . . . . . . . . . . . . . . . . . . . . . . . . . . . . Parts Stolen . | . . . . . . . . . . . . . . . . . . . . . . . . . . . . . . . . . . . . . Parts Stripped . | . . . . . . . . . . . . . . . . . . . . . . . . . . . . . . . . . . . . . Power Chain Reactions . | . . . . . . . . . . . . . . . . . . . . . . . . . . . . . . . . . . . . . Alert | -11 -10 -10 -10 -9 -8 -7 -7 -7 -7 -7 -7 -6 -6 -6 -6 -6 -6 -6 -5 -5 -5 -5 -5 -5 -5 -4 -4 -4 -4 -4 -4 -4 -3 -3 -2 -1 ------- Run | Yrd Mat Min Exi Min Mat Fac Was Fac Low Low Dat Pro Fac Was Fac Low Low Zio Pro Fac Was Fac Upp Upp Zhi Pro Fac Was Fac Upp Upp War Pro Res Res Acc Peak Influence 618 | 25 374 279 . 101 618 334 29 456 . . . . 225 108 359 . . . . 287 40 213 . . . . 299 134 170 . . . . 583 236 413 Initial 497 | . 16 145 . . 39 189 29 20 . . . . 75 63 75 . . . . 154 40 28 . . . . 132 89 93 . . . . 497 114 141 Average 140 | 9 197 164 . 44 338 105 29 150 . . . . 83 84 253 . . . . 200 40 87 . . . . 106 104 51 . . . . 165 183 231 Maximum Alert Level 2 | . 1 1 . . 2 1 . 2 . . . . 1 . 1 . . . . 1 . 1 . . . . 1 . . . . . . 2 1 2 Low Security (%) 70 | 100 65 83 . 100 36 83 100 63 . . . . 88 100 13 . . . . 36 100 99 . . . . 84 100 100 . . . . 80 56 37 Level 1 26 | . 34 16 . . 15 16 . 33 . . . . 11 . 86 . . . . 63 . . . . . . 15 . . . . . . 4 43 62 Level 2 2 | . . . . . 47 . . 3 . . . . . . . . . . . . . . . . . . . . . . . . . 14 . . Level 3 . | . . . . . . . . . . . . . . . . . . . . . . . . . . . . . . . . . . . . . Level 4 . | . . . . . . . . . . . . . . . . . . . . . . . . . . . . . . . . . . . . . Level 5 . | . . . . . . . . . . . . . . . . . . . . . . . . . . . . . . . . . . . . . High Security . | . . . . . . . . . . . . . . . . . . . . . . . . . . . . . . . . . . . . . Max Security . | . . . . . . . . . . . . . . . . . . . . . . . . . . . . . . . . . . . . . Squads Dispatched 77 | . 1 . . 1 3 11 . 11 . . . . 11 . 8 . . . . 2 . 4 . . . . 7 . 9 . . . . 6 . 3 Investigation 38 | . . . . 1 . 8 . 6 . . . . 5 . 4 . . . . 1 . 2 . . . . 4 . 4 . . . . 2 . 1 Extermination 22 | . . . . . . 1 . 3 . . . . 3 . 4 . . . . 1 . 1 . . . . 3 . 2 . . . . 2 . 2 Reinforcement 16 | . 1 . . . 2 2 . 2 . . . . 3 . . . . . . . . 1 . . . . . . 3 . . . . 2 . . Assault 1 | . . . . . 1 . . . . . . . . . . . . . . . . . . . . . . . . . . . . . . . Garrison . | . . . . . . . . . . . . . . . . . . . . . . . . . . . . . . . . . . . . . Intercept . | . . . . . . . . . . . . . . . . . . . . . . . . . . . . . . . . . . . . . Searches Triggered 3 | . . . . . . . . 1 . . . . . . . . . . . . . . . . . . . . . . . . . 1 . 1 Construction Impeded 1 | . . . . . 1 . . . . . . . . . . . . . . . . . . . . . . . . . . . . . . . Haulers Reinforced 3 | . . . . . . 2 . . . . . . . . . . . . . . . . . . . . . . 1 . . . . . . . Active Scanning Responses . | . . . . . . . . . . . . . . . . . . . . . . . . . . . . . . . . . . . . . Cargo Convoy Interrupts 1 | . . . . . . . . . . . . . 1 . . . . . . . . . . . . . . . . . . . . . . . Stealth | -11 -10 -10 -10 -9 -8 -7 -7 -7 -7 -7 -7 -6 -6 -6 -6 -6 -6 -6 -5 -5 -5 -5 -5 -5 -5 -4 -4 -4 -4 -4 -4 -4 -3 -3 -2 -1 --------- Run | Yrd Mat Min Exi Min Mat Fac Was Fac Low Low Dat Pro Fac Was Fac Low Low Zio Pro Fac Was Fac Upp Upp Zhi Pro Fac Was Fac Upp Upp War Pro Res Res Acc Distress Signals 20 | . 2 . . . 3 . . 3 . . . . 5 . 1 . . . . . . . . . . . 2 . 1 . . . . 1 1 1 Communications Jammed 77 | . . . . . . 4 . 13 . . . . . . . . . . . . . 2 . . . . 13 . 12 . . . 2 7 . 24 Distress Signals 74 | . . . . . . 4 . 13 . . . . . . . . . . . . . 2 . . . . 12 . 12 . . . . 7 . 24 Times Spotted 446 | . 24 5 . . 23 22 . 66 1 3 4 5 31 4 29 . 2 . 8 4 . 11 2 15 . 10 32 3 23 7 12 17 21 30 5 27 Peak Tracking Total 11 | . 5 5 . . 6 3 . 11 1 4 4 4 7 4 8 . 3 . 4 1 . 8 1 8 . 6 4 3 3 4 4 7 8 4 1 5 Tactical Retreats 88 | . 3 1 . . 3 4 . 25 . . . . 10 . 7 . 1 . . . . 1 1 3 . 1 8 . 5 . 3 . 3 1 . 8 Traps | -11 -10 -10 -10 -9 -8 -7 -7 -7 -7 -7 -7 -6 -6 -6 -6 -6 -6 -6 -5 -5 -5 -5 -5 -5 -5 -4 -4 -4 -4 -4 -4 -4 -3 -3 -2 -1 ------- Run | Yrd Mat Min Exi Min Mat Fac Was Fac Low Low Dat Pro Fac Was Fac Low Low Zio Pro Fac Was Fac Upp Upp Zhi Pro Fac Was Fac Upp Upp War Pro Res Res Acc Traps Triggered 35 | . . . . . . 5 . 5 . . . . 2 . 5 . . . . 1 . 1 . . . . 5 . 8 . . . . 3 . . Indirectly . | . . . . . . . . . . . . . . . . . . . . . . . . . . . . . . . . . . . . . Trap Hack Attempts . | . . . . . . . . . . . . . . . . . . . . . . . . . . . . . . . . . . . . . Triggered . | . . . . . . . . . . . . . . . . . . . . . . . . . . . . . . . . . . . . . Disarmed . | . . . . . . . . . . . . . . . . . . . . . . . . . . . . . . . . . . . . . Reprogrammed . | . . . . . . . . . . . . . . . . . . . . . . . . . . . . . . . . . . . . . Reused . | . . . . . . . . . . . . . . . . . . . . . . . . . . . . . . . . . . . . . Traps Extracted . | . . . . . . . . . . . . . . . . . . . . . . . . . . . . . . . . . . . . . Installed . | . . . . . . . . . . . . . . . . . . . . . . . . . . . . . . . . . . . . . Triggered 10 | . . . . . . . . . 1 . . . 1 . . . . . . . . . . . . . . . . . . 8 . . . . Machines | -11 -10 -10 -10 -9 -8 -7 -7 -7 -7 -7 -7 -6 -6 -6 -6 -6 -6 -6 -5 -5 -5 -5 -5 -5 -5 -4 -4 -4 -4 -4 -4 -4 -3 -3 -2 -1 ---------- Run | Yrd Mat Min Exi Min Mat Fac Was Fac Low Low Dat Pro Fac Was Fac Low Low Zio Pro Fac Was Fac Upp Upp Zhi Pro Fac Was Fac Upp Upp War Pro Res Res Acc Machines Disabled 7 | . . . . . 3 1 . . . . 1 . . . 1 . . . . . . . . . . . . . . . 1 . . . . . Max in Single Turn 1 | . . . . . 1 1 . . . . 1 . . . 1 . . . . . . . . . . . . . . . 1 . . . . . Garrison Access 22 | . . . . . . 3 . 1 . . . . 2 . 3 . . . . 2 . 1 . . . . 3 . 4 . . . . 2 . 1 Machines Repaired . | . . . . . . . . . . . . . . . . . . . . . . . . . . . . . . . . . . . . . Machines Dismantled . | . . . . . . . . . . . . . . . . . . . . . . . . . . . . . . . . . . . . . Machines Sabotaged . | . . . . . . . . . . . . . . . . . . . . . . . . . . . . . . . . . . . . . Overloaded Fab Kills . | . . . . . . . . . . . . . . . . . . . . . . . . . . . . . . . . . . . . . Hacking | -11 -10 -10 -10 -9 -8 -7 -7 -7 -7 -7 -7 -6 -6 -6 -6 -6 -6 -6 -5 -5 -5 -5 -5 -5 -5 -4 -4 -4 -4 -4 -4 -4 -3 -3 -2 -1 --------- Run | Yrd Mat Min Exi Min Mat Fac Was Fac Low Low Dat Pro Fac Was Fac Low Low Zio Pro Fac Was Fac Upp Upp Zhi Pro Fac Was Fac Upp Upp War Pro Res Res Acc Machines Accessed 198 | . 8 . 2 1 4 25 . 18 1 . 4 . 20 . 21 . . . . 9 . 6 3 . 6 . 19 . 23 2 2 2 . 14 1 7 Terminals 107 | . 7 . . . 4 17 . 11 . . . . 14 . 11 . . . . 4 . 2 . . . . 11 . 12 1 . . . 8 . 5 Fabricators 29 | . . . . . . 5 . 3 . . . . 2 . 5 . . . . 2 . 2 . . . . 3 . 4 . . . . 2 1 . Repair Stations 16 | . 1 . . . . . . 3 . . . . 2 . 2 . . . . 1 . 1 . . . . 1 . 2 . . . . 2 . 1 Recycling Units . | . . . . . . . . . . . . . . . . . . . . . . . . . . . . . . . . . . . . . Scanalyzers 2 | . . . . . . . . . . . . . . . . . . . . . . . . . . . 1 . 1 . . . . . . . Garrison Access 22 | . . . . . . 3 . 1 . . . . 2 . 3 . . . . 2 . 1 . . . . 3 . 4 . . . . 2 . 1 Total Hacks 594 | . 19 . 2 1 11 75 . 49 7 . 32 . 51 . 58 . . . . 20 . 22 3 . 25 . 75 . 71 2 2 3 . 44 2 20 Successful 388 | . 11 . 2 1 5 37 . 39 7 . 32 . 32 . 34 . . . . 12 . 12 3 . 25 . 43 . 48 2 2 3 . 29 1 8 Failed 206 | . 8 . . . 6 38 . 10 . . . . 19 . 24 . . . . 8 . 10 . . . . 32 . 23 . . . . 15 1 12 Catastrophic 24 | . . . . . . 9 . 2 . . . . 2 . 3 . . . . . . . . . . . 1 . 4 . . . . 2 . 1 Database Lockouts . | . . . . . . . . . . . . . . . . . . . . . . . . . . . . . . . . . . . . . Manual 256 | . 13 . 1 . 9 35 . 21 . . . . 29 . 29 . . 1 . 7 . 6 . . . . 39 . 36 . . 1 . 22 . 7 Terminals 365 | . 17 . . . 11 53 . 35 . . . . 40 . 36 . . . . 11 . 11 . . . . 55 . 48 1 . . . 31 . 16 Fabricators 72 | . . . . . . 16 . 7 . . . . 5 . 10 . . . . 3 . 7 . . . . 9 . 8 . . . . 5 2 . Repair Stations 43 | . 2 . . . . . . 6 . . . . 4 . 6 . . . . 3 . 3 . . . . 5 . 8 . . . . 4 . 2 Recycling Units . | . . . . . . . . . . . . . . . . . . . . . . . . . . . . . . . . . . . . . Scanalyzers 6 | . . . . . . . . . . . . . . . . . . . . . . . . . . . 3 . 3 . . . . . . . Garrison Access 32 | . . . . . . 6 . 1 . . . . 2 . 6 . . . . 3 . 1 . . . . 3 . 4 . . . . 4 . 2 Terminal Hacks 206 | . 3 . 2 1 2 14 . 19 7 . 32 . 15 . 9 . . . . 4 . 4 3 . 25 . 19 . 22 2 2 3 . 14 . 4 Record 36 | . . . 1 . . . . . 7 . 11 . . . . . . . . . . . . . 13 . . . . 1 1 2 . . . . Part Schematic 41 | . 1 . . . . 3 . 3 . . 12 . 5 . 1 . . . . 1 . 1 . . 4 . 5 . 2 . . . . 3 . . Robot Schematic 6 | . . . . . . . . . . . 6 . . . . . . . . . . . . . . . . . . . . . . . . . Robot Analysis 7 | . 1 . . . . . . . . . . . . . . . . . . . . . . . 4 . . . 2 . . . . . . . Prototype ID Bank 9 | . . . . . . 1 . . . . 3 . . . . . . . . . . . . . 4 . . . 1 . . . . . . . Open Door 8 | . . . . 1 . . . . . . . . . . . . . . . . . . 3 . . . . . . 1 1 1 . . . 1 Level Access Points 2 | . . . . . . . . . . . . . . . . . . . . . . . . . . . . . . . . . . 1 . 1 Branch Access Points 9 | . . . . . 1 1 . 1 . . . . 1 . 1 . . . . 1 . 1 . . . . 1 . 1 . . . . . . . Machine Index 4 | . . . . . . 1 . 1 . . . . . . . . . . . . . . . . . . 1 . 1 . . . . . . . Terminal Index 7 | . . . . . . 1 . 1 . . . . . . 1 . . . . 1 . 1 . . . . . . 1 . . . . 1 . . Fabricator Index 1 | . . . . . . . . . . . . . . . . . . . . . . . . . . . . . . . . . . 1 . . Alert Level 5 | . . . . . . . . 1 . . . . 1 . . . . . . . . . . . . . . . . . . . . 3 . . Unreport Threat 15 | . . . . . . 1 . 3 . . . . 4 . . . . . . . . . . . . . 2 . 3 . . . . 2 . . Locate Traps 12 | . 1 . . . . 1 . 2 . . . . . . 2 . . . . . . . . . . . 3 . 2 . . . . . . 1 Dispatch Records 2 | . . . . . . . . . . . . . . . . . . . . . . . . . . . . . 2 . . . . . . . Surveillance Status 1 | . . . . . . . . . . . . . . . . . . . . . . . . . . . 1 . . . . . . . . . Patrol Status 7 | . . . . . . 1 . 1 . . . . 1 . 1 . . . . . . 1 . . . . 1 . 1 . . . . . . . Recall Investigation 11 | . . . . . . 1 . 1 . . . . 2 . . . . . . . . . . . . . 2 . 3 . . . . 2 . . Recall Extermination 11 | . . . . . . . . 2 . . . . 1 . 2 . . . . 1 . . . . . . 2 . 2 . . . . 1 . . Recall Reinforcements 1 | . . . . . . . . . . . . . . . . . . . . . . . . . . . . . 1 . . . . . . . Hauler Manifests 3 | . . . . . 1 . . 1 . . . . . . 1 . . . . . . . . . . . . . . . . . . . . . Registered Components 1 | . . . . . . 1 . . . . . . . . . . . . . . . . . . . . . . . . . . . . . . Zone Layout 6 | . . . . . . 2 . 2 . . . . . . . . . . . . . . . . . . 1 . . . . . . . . 1 Derelict Proto ID Bank 1 | . . . 1 . . . . . . . . . . . . . . . . . . . . . . . . . . . . . . . . . Fabricator Hacks 56 | . . . . . . 10 . 6 . . . . 5 . 8 . . . . 2 . 5 . . . . 7 . 7 . . . . 5 1 . Network Status 8 | . . . . . . 1 . . . . . . 1 . 1 . . . . 1 . 1 . . . . . . 1 . . . . 1 1 . Load Schematic 26 | . . . . . . 5 . 3 . . . . 2 . 4 . . . . 1 . 2 . . . . 4 . 3 . . . . 2 . . Build 22 | . . . . . . 4 . 3 . . . . 2 . 3 . . . . . . 2 . . . . 3 . 3 . . . . 2 . . Repair Station Hacks 37 | . 2 . . . . . . 5 . . . . 3 . 5 . . . . 2 . 2 . . . . 4 . 8 . . . . 4 . 2 Scan Component 20 | . 1 . . . . . . 3 . . . . 2 . 3 . . . . 1 . 1 . . . . 2 . 4 . . . . 2 . 1 Repair 17 | . 1 . . . . . . 2 . . . . 1 . 2 . . . . 1 . 1 . . . . 2 . 4 . . . . 2 . 1 Recycling Unit Hacks . | . . . . . . . . . . . . . . . . . . . . . . . . . . . . . . . . . . . . . Scanalyzer 5 | . . . . . . . . . . . . . . . . . . . . . . . . . . . 3 . 2 . . . . . . . Insert Component 2 | . . . . . . . . . . . . . . . . . . . . . . . . . . . 1 . 1 . . . . . . . Analyze 3 | . . . . . . . . . . . . . . . . . . . . . . . . . . . 2 . 1 . . . . . . . Garrison Access Hacks 22 | . . . . . . 3 . 1 . . . . 2 . 3 . . . . 2 . 1 . . . . 3 . 4 . . . . 2 . 1 Seal Access 22 | . . . . . . 3 . 1 . . . . 2 . 3 . . . . 2 . 1 . . . . 3 . 4 . . . . 2 . 1 Unauthorized Hacks 62 | . 6 . . . 3 10 . 8 . . . . 7 . 9 . . . . 2 . . . . . . 7 . 5 . . . . 4 . 1 Terminals 59 | . 6 . . . 3 10 . 8 . . . . 7 . 8 . . . . 1 . . . . . . 6 . 5 . . . . 4 . 1 Assimilate 13 | . . . . . . 2 . 1 . . . . 3 . 1 . . . . . . . . . . . 2 . 2 . . . . 2 . . Botnet 22 | . 1 . . . . 2 . 6 . . . . 3 . . . . . . . . . . . . . 4 . 3 . . . . 2 . 1 Operators 6 | . 1 . . . . 1 . 1 . . . . 1 . 1 . . . . 1 . . . . . . . . . . . . . . . . Skim 18 | . 4 . . . 3 5 . . . . . . . . 6 . . . . . . . . . . . . . . . . . . . . . Fabricators 3 | . . . . . . . . . . . . . . . 1 . . . . 1 . . . . . . 1 . . . . . . . . . Recompile 3 | . . . . . . . . . . . . . . . 1 . . . . 1 . . . . . . 1 . . . . . . . . . Repair Stations . | . . . . . . . . . . . . . . . . . . . . . . . . . . . . . . . . . . . . . Recycling Units . | . . . . . . . . . . . . . . . . . . . . . . . . . . . . . . . . . . . . . Scanalyzers . | . . . . . . . . . . . . . . . . . . . . . . . . . . . . . . . . . . . . . Garrison Access . | . . . . . . . . . . . . . . . . . . . . . . . . . . . . . . . . . . . . . Data Cores Recovered 1 | . . . . . . . . . . . . . . . . . . . . . . . . . . . 1 . . . . . . . . . Used . | . . . . . . . . . . . . . . . . . . . . . . . . . . . . . . . . . . . . . Hacking Detections 120 | . 3 . . . 4 21 . 17 . . . . 16 . 18 . . . . 3 . 3 . . . . 10 . 10 . . . . 11 . 4 Full Trace Events 34 | . . . . . . 8 . 6 . . . . 5 . 3 . . . . . . 2 . . . . 3 . 4 . . . . 2 . 1 Feedback Events 3 | . . . . . . 3 . . . . . . . . . . . . . . . . . . . . . . . . . . . . . . Corruption 2 | . . . . . . 2 . . . . . . . . . . . . . . . . . . . . . . . . . . . . . . Hackware Fried 1 | . . . . . . 1 . . . . . . . . . . . . . . . . . . . . . . . . . . . . . . Feedback Blocked . | . . . . . . . . . . . . . . . . . . . . . . . . . . . . . . . . . . . . . Robot Schematics Acquired 9 | . . . . . . . . . . . 6 . . . . . . 3 . . . . . . . . . . . . . . . . . . Robots Built . | . . . . . . . . . . . . . . . . . . . . . . . . . . . . . . . . . . . . . Authchips . | . . . . . . . . . . . . . . . . . . . . . . . . . . . . . . . . . . . . . Time . | . . . . . . . . . . . . . . . . . . . . . . . . . . . . . . . . . . . . . Total Robot Build Rating . | . . . . . . . . . . . . . . . . . . . . . . . . . . . . . . . . . . . . . Part Schematics Acquired 56 | . 1 . . . . 3 . 3 . . 12 . 5 . 1 . . 13 . 1 . 1 . . 4 . 6 . 3 . . . . 3 . . Parts Built 23 | . . . . . . 4 . 3 . . . . 2 . 3 . . . . . . 3 . . . . 3 . 3 . . . . 2 . . Authchips 3 | . . . . . . . . . . . . . . . 1 . . . . . . 1 . . . . 1 . . . . . . . . . Time 1845 | . . . . . . 279 . 189 . . . . 201 . 141 . . . . . . 120 . . . . 279 . 330 . . . . 306 . . Total Part Build Rating 126 | . . . . . . 13 . 15 . . . . 8 . 18 . . . . . . 16 . . . . 21 . 19 . . . . 16 . . Parts Repaired 17 | . 1 . . . . . . 2 . . . . 1 . 2 . . . . 1 . 1 . . . . 2 . 4 . . . . 2 . 1 Time 608 | . 26 . . . . . . 66 . . . . 61 . 140 . . . . 16 . 25 . . . . 60 . 103 . . . . 75 . 36 Parts Recycled . | . . . . . . . . . . . . . . . . . . . . . . . . . . . . . . . . . . . . . Recycled Matter . | . . . . . . . . . . . . . . . . . . . . . . . . . . . . . . . . . . . . . Retrieved Matter . | . . . . . . . . . . . . . . . . . . . . . . . . . . . . . . . . . . . . . Retrieved Components . | . . . . . . . . . . . . . . . . . . . . . . . . . . . . . . . . . . . . . Parts Scanalyzed 2 | . . . . . . . . . . . . . . . . . . . . . . . . . . . 1 . 1 . . . . . . . Part Schematics Acquired 2 | . . . . . . . . . . . . . . . . . . . . . . . . . . . 1 . 1 . . . . . . . Parts Damaged . | . . . . . . . . . . . . . . . . . . . . . . . . . . . . . . . . . . . . . Bothacking | -11 -10 -10 -10 -9 -8 -7 -7 -7 -7 -7 -7 -6 -6 -6 -6 -6 -6 -6 -5 -5 -5 -5 -5 -5 -5 -4 -4 -4 -4 -4 -4 -4 -3 -3 -2 -1 ------------ Run | Yrd Mat Min Exi Min Mat Fac Was Fac Low Low Dat Pro Fac Was Fac Low Low Zio Pro Fac Was Fac Upp Upp Zhi Pro Fac Was Fac Upp Upp War Pro Res Res Acc Used RIF Installer . | . . . . . . . . . . . . . . . . . . . . . . . . . . . . . . . . . . . . . Robots Hacked 1 | . . . . . . . . . . . . . 1 . . . . . . . . . . . . . . . . . . . . . . . Non-combat 1 | . . . . . . . . . . . . . 1 . . . . . . . . . . . . . . . . . . . . . . . Combat . | . . . . . . . . . . . . . . . . . . . . . . . . . . . . . . . . . . . . . Robot Hacks Applied 1 | . . . . . . . . . . . . . 1 . . . . . . . . . . . . . . . . . . . . . . . find_chute 1 | . . . . . . . . . . . . . 1 . . . . . . . . . . . . . . . . . . . . . . . Relay Couplers Released 3 | . . . . . . . . 3 . . . . . . . . . . . . . . . . . . . . . . . . . . . . Programmers 3 | . . . . . . . . 3 . . . . . . . . . . . . . . . . . . . . . . . . . . . . Fabnet Peak Effective % . | . . . . . . . . . . . . . . . . . . . . . . . . . . . . . . . . . . . . . Robots Rewired 6 | . . . . . . . . . . . . . 1 . . . . . . . . . . . . . . . . . . 5 . . . . Allies Hacked 3 | . . . . . . 1 . 1 . . . . 1 . . . . . . . . . . . . . . . . . . . . . . . Hacks Repelled . | . . . . . . . . . . . . . . . . . . . . . . . . . . . . . . . . . . . . . Allies | -11 -10 -10 -10 -9 -8 -7 -7 -7 -7 -7 -7 -6 -6 -6 -6 -6 -6 -6 -5 -5 -5 -5 -5 -5 -5 -4 -4 -4 -4 -4 -4 -4 -3 -3 -2 -1 -------- Run | Yrd Mat Min Exi Min Mat Fac Was Fac Low Low Dat Pro Fac Was Fac Low Low Zio Pro Fac Was Fac Upp Upp Zhi Pro Fac Was Fac Upp Upp War Pro Res Res Acc Total Allies 26 | . . . . 4 . 1 . 1 . . . . 4 . 3 . . 2 . . . . . . . . 2 . 2 . . 5 . 2 . . Largest Group 5 | . . . . 4 3 1 . 1 . . . . 1 . 3 . . 2 2 . . . . . . . 1 . 2 . . 5 2 1 . . Highest-Rated Group 284 | . . . . 71 40 10 . 26 . . . . 26 . 93 . . 192 192 . . . . . . . 10 . 20 . . 284 130 45 . . Highest-Rated Ally 96 | . . . . 31 16 10 . 26 . . . . 26 . 31 . . 96 96 . . . . . . . 10 . 10 . . 65 65 45 . . Total Orders . | . . . . . . . . . . . . . . . . . . . . . . . . . . . . . . . . . . . . . Ally Attacks 121 | . . . . 15 20 . . . . . . . 2 . 16 . . . 29 . . . . . . . . . . . . 39 . . . . Total Damage 3238 | . . . . 174 152 . . . . . . . 20 . 225 . . . 1117 . . . . . . . . . . . . 1550 . . . . Kills 26 | . . . . 4 5 . . . . . . . . . 4 . . . 5 . . . . . . . . . . . . 8 . . . . Allies Corrupted 1 | . . . . . . 1 . . . . . . . . . . . . . . . . . . . . . . . . . . . . . . Allies Melted 1 | . . . . . . . . . . . . . . . . . . . . . . . . . . . . . . . . 1 . . . . Intel | -11 -10 -10 -10 -9 -8 -7 -7 -7 -7 -7 -7 -6 -6 -6 -6 -6 -6 -6 -5 -5 -5 -5 -5 -5 -5 -4 -4 -4 -4 -4 -4 -4 -3 -3 -2 -1 ------- Run | Yrd Mat Min Exi Min Mat Fac Was Fac Low Low Dat Pro Fac Was Fac Low Low Zio Pro Fac Was Fac Upp Upp Zhi Pro Fac Was Fac Upp Upp War Pro Res Res Acc Robot Analysis Total 7 | . 1 . . . . . . . . . . . . . . . . . . . . . . . 4 . . . 2 . . . . . . . Derelict Logs Recovered 18 | . . . . 1 . . . . 1 2 . 1 . . . 3 2 . 1 . . . 1 1 . 1 . . . 3 1 . . . . . Drone Launches . | . . . . . . . . . . . . . . . . . . . . . . . . . . . . . . . . . . . . . Drone Recoveries . | . . . . . . . . . . . . . . . . . . . . . . . . . . . . . . . . . . . . . Exploration | -11 -10 -10 -10 -9 -8 -7 -7 -7 -7 -7 -7 -6 -6 -6 -6 -6 -6 -6 -5 -5 -5 -5 -5 -5 -5 -4 -4 -4 -4 -4 -4 -4 -3 -3 -2 -1 ------------- Run | Yrd Mat Min Exi Min Mat Fac Was Fac Low Low Dat Pro Fac Was Fac Low Low Zio Pro Fac Was Fac Upp Upp Zhi Pro Fac Was Fac Upp Upp War Pro Res Res Acc Turns Passed 24800 | 112 685 154 137 205 405 1907 277 2405 135 58 108 177 2280 45 2441 190 122 531 374 571 100 711 169 252 91 101 2419 51 2586 309 303 394 529 2124 288 1054 Spaces Moved 45551 | 83 1012 359 335 287 652 3340 562 3987 407 215 142 547 4302 137 4721 470 453 1229 358 1148 323 1651 556 321 181 373 4525 143 4177 917 788 722 758 2829 868 1673 Core 366 | 83 71 . . . . . . . . . . . . . . . . . . . . . . . . . . . . . . . 88 124 . . Treads . | . . . . . . . . . . . . . . . . . . . . . . . . . . . . . . . . . . . . . Legs . | . . . . . . . . . . . . . . . . . . . . . . . . . . . . . . . . . . . . . Wheels . | . . . . . . . . . . . . . . . . . . . . . . . . . . . . . . . . . . . . . Hover . | . . . . . . . . . . . . . . . . . . . . . . . . . . . . . . . . . . . . . Flight 45185 | . 941 359 335 287 652 3340 562 3987 407 215 142 547 4302 137 4721 470 453 1229 358 1148 323 1651 556 321 181 373 4525 143 4177 917 788 722 670 2705 868 1673 Fastest Speed 6 | 50 37 37 37 34 28 28 26 24 27 27 24 27 14 14 14 24 24 24 24 22 23 6 6 6 23 6 6 26 15 27 27 27 18 17 19 19 Average Speed 26 | 50 37 37 37 34 29 29 32 27 27 27 26 27 24 21 24 24 24 24 24 22 23 22 22 20 23 22 26 26 28 27 27 27 32 26 24 22 Slowest Speed 250 | 50 50 37 37 37 112 34 102 29 27 27 27 27 31 23 93 24 24 24 24 24 23 24 23 23 23 23 93 26 29 27 27 34 250 200 25 29 Overloaded Moves 287 | . . . . . . . 32 12 . . 18 . 24 27 11 . . . . . . 18 10 49 . 10 20 . 28 . . . 28 . . . Propulsion Burnouts . | . . . . . . . . . . . . . . . . . . . . . . . . . . . . . . . . . . . . . Robots Hopped 239 | . 6 5 . . 2 13 . 51 . . 1 . 23 . 23 . 1 . . 8 . 11 . . . 3 41 . 33 . . 3 . 7 4 4 Cave-ins Triggered 1 | . . . . . . . . . . . . . . . . . . . . . . . . . . . . . . . . . 1 . . . Exploration Rate (%) 63 | 5 94 79 61 46 37 76 97 61 58 49 80 65 68 80 74 64 64 85 61 29 97 23 66 58 63 69 63 82 60 96 77 82 73 53 28 31 Regions Visited 36 Branch Regions 19 Pre-discovered Areas 12 | . . . 1 . . 1 . . . . 1 . . . 1 1 2 2 . . . . . . 3 . . . . . . . . . . . Known Exits Taken 11 | . . . . . . . . 1 . . . 1 . . 1 . . . 1 . . 1 1 1 . 1 . . 1 . . . . 1 1 . Unknown Exits Taken 17 | 1 1 1 1 1 1 . . . 1 1 1 . . . . 1 1 1 . . . . . . 1 . . . . 1 1 1 1 . . . Scrap Searched 37 | . . 2 . 1 . . . . 2 1 . 2 . . . 2 8 5 1 . . . 5 2 . 1 . . . 2 2 . 1 . . . Spaces Dug 506 | . 8 . . . 12 45 . 44 1 . 1 14 48 . 40 . . . 1 11 . 8 2 1 . 9 49 . 38 21 15 9 49 33 7 40 Terrain Destroyed 1011 | . 52 21 . . 35 45 . 44 1 . 1 34 48 . 72 . . . 26 11 . 9 6 42 . 53 54 . 39 95 15 64 146 40 7 51 Melee 349 | . . . . . 12 45 . 44 1 . 1 . 48 . 34 . . . 1 11 . 7 2 . . . 46 . 37 2 1 2 1 27 7 20 Projectile 133 | . 16 . . . . . . . . . . . . . . . . . . . . 2 4 7 . . 8 . 2 3 . 9 38 13 . 31 AOE 529 | . 36 21 . . 23 . . . . . . 34 . . 38 . . . 25 . . . . 35 . 53 . . . 90 14 53 107 . . . Terrain Rammed . | . . . . . . . . . . . . . . . . . . . . . . . . . . . . . . . . . . . . . Walls Destroyed . | . . . . . . . . . . . . . . . . . . . . . . . . . . . . . . . . . . . . . Machines Disabled . | . . . . . . . . . . . . . . . . . . . . . . . . . . . . . . . . . . . . . Actions | -11 -10 -10 -10 -9 -8 -7 -7 -7 -7 -7 -7 -6 -6 -6 -6 -6 -6 -6 -5 -5 -5 -5 -5 -5 -5 -4 -4 -4 -4 -4 -4 -4 -3 -3 -2 -1 --------- Run | Yrd Mat Min Exi Min Mat Fac Was Fac Low Low Dat Pro Fac Was Fac Low Low Zio Pro Fac Was Fac Upp Upp Zhi Pro Fac Was Fac Upp Upp War Pro Res Res Acc Total 56381 | 133 1220 373 345 394 802 4071 620 5106 425 214 176 564 5387 152 5879 545 464 1462 633 1421 343 1946 589 493 214 379 5581 155 5434 953 872 898 972 4035 912 2219 Wait 9141 | 26 136 . 6 95 69 549 25 1054 6 . 17 7 956 12 1045 71 13 218 245 243 10 261 8 153 . 4 939 7 1149 1 70 105 138 1038 8 457 Move 45057 | 82 999 348 334 286 647 3315 561 3889 406 214 139 546 4256 136 4675 469 450 1228 357 1132 322 1628 555 320 180 367 4449 142 4113 916 787 716 756 2814 859 1664 Hop 221 | . 6 5 . . 2 12 . 46 . . 1 . 23 . 22 . 1 . . 8 . 11 . . . 2 35 . 30 . . 2 . 7 4 4 Pick Up 66 | 3 10 2 1 2 5 6 . 2 2 . . . 6 . 5 . . . 2 3 . 2 . 1 2 . 4 . 2 . . 1 1 3 1 . Fast Attach 262 | 2 7 4 . 3 9 15 8 13 2 . . 1 8 2 12 2 . 8 6 8 3 8 4 2 8 . 20 4 24 6 5 13 . 39 11 5 Attach 38 | . 1 2 . . 4 2 . 1 . . . 1 3 . 3 . . . . 1 . . 5 . 1 . 6 . 1 . . . 4 3 . . Detach 42 | . . 1 . 1 3 2 1 . . . . . 2 . 2 . . 1 1 . . 1 5 . . . 7 . 2 1 . 2 3 5 2 . Swap 203 | . 11 1 4 1 8 13 2 11 2 . . 3 21 . 25 1 . . 5 2 2 7 2 4 3 . 14 . 13 8 2 5 7 16 1 9 Drop 275 | 1 10 7 . 6 13 23 7 10 4 . . . 19 2 14 2 . 6 8 7 3 10 3 3 10 . 19 2 28 5 5 12 2 22 10 2 Fire 282 | 19 40 3 . . 18 . 16 . . . . 4 1 . 6 . . . 3 . 3 2 4 10 . 6 8 . 2 10 1 13 55 20 . 38 Melee 707 | . . . . . 24 94 . 65 3 . 19 2 90 . 69 . . 1 6 17 . 16 3 . 10 . 80 . 70 6 2 2 4 68 16 40 Ram 1 | . . . . . . . . . . . . . . . . . . . . . . . . . . . . . . . . . 1 . . . Kick . | . . . . . . . . . . . . . . . . . . . . . . . . . . . . . . . . . . . . . Crush . | . . . . . . . . . . . . . . . . . . . . . . . . . . . . . . . . . . . . . Escape Stasis 57 | . . . . . . 40 . 15 . . . . . . 1 . . . . . . . . . . . . . . . . . 1 . . . Rewire 29 | . . . . . . . . . . . . . 2 . . . . . . . . . . . . . . . . . . 27 . . . . Trap . | . . . . . . . . . . . . . . . . . . . . . . . . . . . . . . . . . . . . . Miscellaneous . | . . . . . . . . . . . . . . . . . . . . . . . . . . . . . . . . . . . . . Route ------- -11/Scrapyard -10/Materials (discovered 3 exits: [*Mat x2] / [*Min]) -10/Mines (discovered 2 exits: [*Mat] / *Exi) -10/Exiles -9/Mines -8/Materials -7/Factory (discovered 8 exits: *Fac x4 / *Sto x2 / *Low x2) -7/Waste -7/Factory (discovered 6 exits: *Fac x2 / *Sto x2 / *Low x2) -7/Lower Caves -7/Lower Caves (discovered 2 exits: *Fac / *Dat) -7/Data Miner -6/Proximity Caves -6/Factory (discovered 6 exits: *Fac x2 / *Low x2 / *Ext x2) -6/Waste -6/Factory (discovered 6 exits: *Fac x2 / *Low x2 / *Ext x2) -6/Lower Caves -6/Lower Caves -6/Zion -5/Proximity Caves -5/Factory (discovered 4 exits: *Fac x2 / Upp x2) -5/Waste -5/Factory (discovered 2 exits: *Upp x2) -5/Upper Caves -5/Upper Caves (discovered 2 exits: *Fac / *Zhi) -5/Zhirov -4/Proximity Caves -4/Factory (discovered 5 exits: *Res x2 / Upp x2 / Arm) -4/Waste -4/Factory (discovered 5 exits: *Res x2 / *Upp x2 / Arm) -4/Upper Caves -4/Upper Caves (discovered 2 exits: *Res / *War) -4/Warlord -3/Proximity Caves -3/Research (discovered 4 exits: *Res x3 / [*Tes]) -2/Research -1/Access To Epsilon Eridani History --------- Turn | Location | Event 5 | -11/Scrapyard | Discovered new exit (range 15) 113 | -11/Scrapyard | Entered Materials 248 | -10/Materials | Discovered new exit (range 14) 301 | -10/Materials | Build established: Mutant 505 | -10/Materials | Discovered new exit (range 16) 549 | -10/Materials | Repaired Mining Laser 585 | -10/Materials | Discovered new exit (range 16) 798 | -10/Materials | Entered Mines 887 | -10/Mines | Assembled infested the area 894 | -10/Mines | A weapon hastily lodged in a ceiling crevice suddenly fell to the ground 932 | -10/Mines | Discovered new exit (range 11) 950 | -10/Mines | Deemed a non-threat by the Exiles lab entrance 950 | -10/Mines | Discovered new exit (range 6) 952 | -10/Mines | Entered Exiles 961 | -10/Exiles | Met 8R-AWN 968 | -10/Exiles | Met EX-HEX 979 | -10/Exiles | Met EX-BIN 984 | -10/Exiles | Aligned with FarCom system 984 | -10/Exiles | Given EX-Vault access code 993 | -10/Exiles | Opened EX-Vault 1002 | -10/Exiles | Warned to stay clear of 0b10 Research branches 1013 | -10/Exiles | Met EX-DEC 1015 | -10/Exiles | Learned location of Zion (-6) 1035 | -10/Exiles | Found Skeleton Box 1086 | -10/Exiles | Discovered new exit (range 10) 1089 | -10/Exiles | Left Exiles lab with Skeleton Box 1089 | -10/Exiles | Entered Mines 1092 | -9/Mines | Received a Mining Laser from a helpful Derelict 1128 | -9/Mines | Assisted by bots powering up and referring to "LRC-V3" 1141 | -9/Mines | Met a Derelict bent on vengeance 1146 | -9/Mines | Discovered new exit (range 8) 1166 | -9/Mines | Met a Derelict shopkeep closing up shop 1166 | -9/Mines | Learned Materials stockpile data 1294 | -9/Mines | Entered Materials 1294 | -8/Materials | Accompanied by 3 allies 1294 | -8/Materials | Evolved 4 slots: Power x1, Propulsion x2, Utility x1 1585 | -8/Materials | Build established: Sprinter 1611 | -8/Materials | Discovered new exit (range 11) 1694 | -8/Materials | First assault squad dispatched 1699 | -8/Materials | Entered Factory 1699 | -7/Factory | Evolved 2 slots: Utility x2 1764 | -7/Factory | Discovered new exit (range 3) 1940 | -7/Factory | Discovered new exit (range 12) 1976 | -7/Factory | Discovered new exit (range 12) 1977 | -7/Factory | Identified exit to Storage 1977 | -7/Factory | Identified exit to Lower Caves 1994 | -7/Factory | Build established: Hacker-Scout 2058 | -7/Factory | Discovered new exit (range 16) 2344 | -7/Factory | Fabricated Hacking Suite (x1) 2499 | -7/Factory | Build established: Hacker-Sprinter 2606 | -7/Factory | Discovered new exit (range 15) 2613 | -7/Factory | Learned Hub_04(d) stockpile data 2658 | -7/Factory | Learned Hub_04(d) trap positions 2693 | -7/Factory | Learned 2 Lower Caves zone layouts 2716 | -7/Factory | Learned location of Extension (-6) 2728 | -7/Factory | Learned location of 1 exit from Proximity Caves 2751 | -7/Factory | Learned 4 Extension zone layouts 2756 | -7/Factory | Fabricated Hacking Suite? 2959 | -7/Factory | Hacking Suite fried by hacking feedback 3010 | -7/Factory | Fabricated Hacking Suite (x1) 3344 | -7/Factory | Fabricated Cld. VTOL Module? 3606 | -7/Factory | Manually triggered Chute Trap 3606 | -7/Factory | Sucked down chute 3606 | -7/Factory | Entered Waste 3606 | -7/Waste | The area was eerily silent 3652 | -7/Waste | Discovered new exit (range 15) 3883 | -7/Waste | Entered Factory 3905 | -7/Factory | Discovered exit to Lower Caves (range 7) 4438 | -7/Factory | Repaired Greatsword 4554 | -7/Factory | Repaired Transmission Jammer 5509 | -7/Factory | Fabricated Imp. Hacking Suite? 5670 | -7/Factory | Fabricated Imp. Hacking Suite? 5760 | -7/Factory | Discovered new exit (range 15) 5898 | -7/Factory | Discovered new exit (range 8) 6105 | -7/Factory | Fabricated Imp. Hacking Suite? 6283 | -7/Factory | Search patrols dispatched 6288 | -7/Factory | Entered Lower Caves 6324 | -7/Lower Caves | Encountered a Warlord checkpoint 6326 | -7/Lower Caves | Learned location of 1 exit from Proximity Caves 6378 | -7/Lower Caves | Learned location of 1 exit from Factory 6378 | -7/Lower Caves | Learned Extension trap positions 6378 | -7/Lower Caves | Learned Extension emergency access door positions 6378 | -7/Lower Caves | Learned Armory security intel 6378 | -7/Lower Caves | Learned Factory terminal intel 6418 | -7/Lower Caves | Discovered new exit (range 11) 6423 | -7/Lower Caves | Entered another Lower Caves area 6425 | -7/Lower Caves | Discovered new exit (range 10) 6436 | -7/Lower Caves | Learned Factory terminal intel 6445 | -7/Lower Caves | Encountered a Warlord checkpoint 6447 | -7/Lower Caves | Learned 4 Factory zone layouts 6479 | -7/Lower Caves | Discovered new exit (range 10) 6481 | -7/Lower Caves | Entered Data Miner 6481 | -7/Data Miner | Discovered new exit (range 6) 6482 | -7/Data Miner | Core integrity fell below 50% 6487 | -7/Data Miner | Met Data Miner 6493 | -7/Data Miner | Learned location of Section 7 (-2) 6493 | -7/Data Miner | Acquired the access code to Warlord's prototype stash 6496 | -7/Data Miner | Received God Mode back door access code from Data Miner 6507 | -7/Data Miner | Data Conduit disabled 6589 | -7/Data Miner | Entered Proximity Caves 6590 | -6/Proximity Caves | Identified exit to Factory 6591 | -6/Proximity Caves | Learned Factory interactive machine intel 6719 | -6/Proximity Caves | Spotted B-75 Beast 6766 | -6/Proximity Caves | Entered Factory 6766 | -6/Factory | Evolved 2 slots: Propulsion x1, Utility x1 6767 | -6/Factory | Identified exit to Extension 6769 | -6/Factory | Loaded intel: 54 interactive machine locations 6770 | -6/Factory | Loaded intel: 28 terminal locations 6837 | -6/Factory | Discovered new exit (range 16) 6904 | -6/Factory | Discovered exit to Extension (range 12) 6920 | -6/Factory | Discovered new exit (range 5) 7023 | -6/Factory | Repaired Broken Xenon Bombardment Thruster 7127 | -6/Factory | Fabricated Cld. VTOL Module? 7264 | -6/Factory | Fabricated Cld. VTOL Module (x1) 7268 | -6/Factory | Discovered new exit (range 9) 7278 | -6/Factory | Identified exit to Lower Caves 8197 | -6/Factory | Cargo convoy interrupted 9046 | -6/Factory | Manually triggered Chute Trap 9046 | -6/Factory | Sucked down chute 9046 | -6/Factory | Entered Waste 9048 | -6/Waste | Spotted C-40 Crusher 9048 | -6/Waste | Spotted C-40 Crusher 9050 | -6/Waste | Spotted C-40 Crusher 9061 | -6/Waste | Spotted C-40 Crusher 9063 | -6/Waste | Discovered new exit (range 22) 9063 | -6/Waste | Spotted C-40 Crusher 9064 | -6/Waste | Spotted C-40 Crusher 9091 | -6/Waste | Entered Factory 9092 | -6/Factory | Loaded intel: 28 terminal locations 9266 | -6/Factory | Build established: Machinist-Sprinter 9465 | -6/Factory | Allied Derelicts emerged from ambush trap array 9570 | -6/Factory | Spotted B-75 Beast 9913 | -6/Factory | Discovered new exit (range 10) 9941 | -6/Factory | Learned 2 Proximity Caves zone layouts 9942 | -6/Factory | Build established: Machinist-Ninja 10016 | -6/Factory | Learned Hub_04(d) stockpile data 10082 | -6/Factory | Learned Hub_04(d) emergency access door positions 10138 | -6/Factory | Learned 2 Extension zone layouts 10184 | -6/Factory | Learned location of 2 exits from Upper Caves 10246 | -6/Factory | Learned location of 1 exit from Cetus 10284 | -6/Factory | Loaded intel: 54 interactive machine locations 10321 | -6/Factory | Fabricated Adv. Hacking Suite? 10393 | -6/Factory | Learned Extension trap positions 10608 | -6/Factory | Repaired Cld. VTOL Module 10679 | -6/Factory | Repaired Cld. VTOL Module 10759 | -6/Factory | Discovered new exit (range 20) 10911 | -6/Factory | Fabricated Adv. Hacking Suite (x1) 10971 | -6/Factory | Build established: Hacker-Ninja 11018 | -6/Factory | Fabricated Adv. System Shield? 11532 | -6/Factory | Entered Lower Caves 11534 | -6/Lower Caves | Learned Factory emergency access door positions 11578 | -6/Lower Caves | Encountered a Warlord checkpoint 11579 | -6/Lower Caves | Learned Factory security intel 11720 | -6/Lower Caves | Discovered new exit (range 6) 11722 | -6/Lower Caves | Entered another Lower Caves area 11757 | -6/Lower Caves | Encountered a Warlord checkpoint 11820 | -6/Lower Caves | Discovered new exit (range 15) 11822 | -6/Lower Caves | Build established: Hacker-Sprinter 11844 | -6/Lower Caves | Entered Zion 11856 | -6/Zion | Discovered new exit (range 17) 11865 | -6/Zion | Given A8's code to call for help 11874 | -6/Zion | System corruption cleaned by Quarantine Array 11910 | -6/Zion | Found Relay Coupler [Programmer] 11942 | -6/Zion | Learned location of Armory (-4) 11957 | -6/Zion | Given the Hacking Drone Bay 11958 | -6/Zion | Found Prototype Device 11958 | -6/Zion | Identified Hacking Drone Bay 11970 | -6/Zion | Rebuked by Imprinter 12180 | -6/Zion | Enhanced Grunt warped into view, answering call for help 12181 | -6/Zion | Enhanced Grunt warped into view, answering call for help 12375 | -6/Zion | Entered Proximity Caves 12375 | -5/Proximity Caves | Accompanied by 2 allies 12376 | -5/Proximity Caves | Identified exit to Factory 12384 | -5/Proximity Caves | Learned 4 Factory zone layouts 12690 | -5/Proximity Caves | Found Prototype Device 12690 | -5/Proximity Caves | Identified Exp. Thermal Shield 12749 | -5/Proximity Caves | Entered Factory 12749 | -5/Factory | Evolved 2 slots: Propulsion x1, Utility x1 12750 | -5/Factory | Identified exit to Factory 12772 | -5/Factory | Identified exit to Upper Caves 12834 | -5/Factory | Repaired Lgt. Fission Core 13038 | -5/Factory | Build established: Hacker-Ninja 13293 | -5/Factory | Discovered exit to Factory (range 11) 13320 | -5/Factory | Sucked down chute 13320 | -5/Factory | Entered Waste 13320 | -5/Waste | The area was eerily silent 13347 | -5/Waste | Discovered new exit (range 21) 13420 | -5/Waste | Entered Factory 13490 | -5/Factory | Fabricated Imp. Transmission Jammer (x2) 13722 | -5/Factory | Fabricated Cld. VTOL Module (x1) 13759 | -5/Factory | Repaired Power Sword 14131 | -5/Factory | Entered Upper Caves 14132 | -5/Upper Caves | Identified exit to Upper Caves 14219 | -5/Upper Caves | Learned Factory security intel 14300 | -5/Upper Caves | Entered another Upper Caves area 14301 | -5/Upper Caves | Identified exit to Zhirov 14315 | -5/Upper Caves | Discovered exit to Factory (range 5) 14364 | -5/Upper Caves | Learned 4 Factory zone layouts 14388 | -5/Upper Caves | Found DCF Scrap (13 items) 14439 | -5/Upper Caves | Build established: Hacker-Sprinter 14552 | -5/Upper Caves | Entered Zhirov 14552 | -5/Zhirov | Discovered new exit (range 3) 14558 | -5/Zhirov | Met Zhirov 14563 | -5/Zhirov | Learned location of Quarantine (-2) 14563 | -5/Zhirov | Learned location of Testing (-3) 14563 | -5/Zhirov | Learned location of Command (-1) 14567 | -5/Zhirov | Zhirov requested help retrieving the SGEMP Prototype 14572 | -5/Zhirov | Found Alien Artifact 14572 | -5/Zhirov | Identified Integrated Dissipator 14572 | -5/Zhirov | Installed Integrated Dissipator, increased core heat dissipation (+20) 14634 | -5/Zhirov | Found Alien Artifact 14643 | -5/Zhirov | Entered Proximity Caves 14675 | -4/Proximity Caves | Learned Research garrison access intel 14690 | -4/Proximity Caves | Spotted B-86 Titan 14741 | -4/Proximity Caves | Discovered exit to Factory (range 18) 14744 | -4/Proximity Caves | Entered Factory 14744 | -4/Factory | Evolved 2 slots: Utility x2 14745 | -4/Factory | Identified exit to Upper Caves 14787 | -4/Factory | Repaired Lgt. Fission Core 14825 | -4/Factory | Repaired Cld. VTOL Module 15209 | -4/Factory | Build established: Wizard-Ninja 15246 | -4/Factory | Found Prototype Processor 15246 | -4/Factory | Identified Exp. Melee Analysis Suite 15412 | -4/Factory | Discovered new exit (range 14) 15477 | -4/Factory | Found Prototype Hackware 15477 | -4/Factory | Identified Exp. System Shield 15681 | -4/Factory | Identified exit to Armory 15929 | -4/Factory | Fabricated Exp. Hacking Suite (x1) 16023 | -4/Factory | Fabricated Exp. Hacking Suite? 16455 | -4/Factory | Discovered new exit (range 12) 16976 | -4/Factory | Fabricated Plasma Lance (x1) 17163 | -4/Factory | Manually triggered Chute Trap 17163 | -4/Factory | Sucked down chute 17163 | -4/Factory | Entered Waste 17177 | -4/Waste | Spotted C-40 Crusher 17179 | -4/Waste | Spotted C-40 Crusher 17182 | -4/Waste | Spotted C-40 Crusher 17182 | -4/Waste | Spotted C-40 Crusher 17192 | -4/Waste | Spotted C-40 Crusher 17198 | -4/Waste | Crushed by Compactor (0 parts destroyed, 2 dropped) 17207 | -4/Waste | Spotted C-40 Crusher 17209 | -4/Waste | Discovered new exit (range 13) 17214 | -4/Waste | Entered Factory 17216 | -4/Factory | Spotted B-86 Titan 17326 | -4/Factory | Found Prototype Processor 17326 | -4/Factory | Identified Exp. Signal Interpreter 17550 | -4/Factory | Fabricated Exp. Hacking Suite (x1) 18127 | -4/Factory | Repaired Lgt. Fission Core 18163 | -4/Factory | Repaired Lgt. Fission Core 18178 | -4/Factory | Repaired Structural Scanner 18555 | -4/Factory | Repaired Exp. Utility Shielding 18587 | -4/Factory | Discovered new exit (range 22) 18672 | -4/Factory | Discovered new exit (range 6) 19180 | -4/Factory | Fabricated Plasma Lance? 19720 | -4/Factory | Fabricated Cld. Cesium-ion Thruster? 19800 | -4/Factory | Entered Upper Caves 19885 | -4/Upper Caves | Found DCF Scrap (13 items) 19886 | -4/Upper Caves | Encountered a Warlord checkpoint 19892 | -4/Upper Caves | Learned Research security intel 19922 | -4/Upper Caves | Learned location of 1 exit from Research 19985 | -4/Upper Caves | Learned Research security intel 20098 | -4/Upper Caves | Discovered new exit (range 17) 20109 | -4/Upper Caves | Entered another Upper Caves area 20109 | -4/Upper Caves | Discovered new exit (range 14) 20111 | -4/Upper Caves | Attracted the attention of an 0b10 checkpoint 20111 | -4/Upper Caves | Learned Research stockpile data 20113 | -4/Upper Caves | Build established: Wizard-Sprinter 20204 | -4/Upper Caves | Spotted B-86 Titan 20227 | -4/Upper Caves | Encountered a Warlord checkpoint 20405 | -4/Upper Caves | Discovered new exit (range 10) 20412 | -4/Upper Caves | Entered Warlord 20422 | -4/Warlord | System corruption cleaned by Quarantine Array 20499 | -4/Warlord | Visited the Vortex Lab 20504 | -4/Warlord | Found Prototype Launcher 20504 | -4/Warlord | Identified Vortex Catalyst Activator 20506 | -4/Warlord | Warlord's base attacked by MAIN.C 20510 | -4/Warlord | Found Prototype Energy Cannon 20510 | -4/Warlord | Identified Vortex Driver 20571 | -4/Warlord | Met Warlord 20573 | -4/Warlord | Opened Warlord's prototype stash 20581 | -4/Warlord | Found Prototype Processor 20581 | -4/Warlord | Identified Exp. Core Analyzer 20585 | -4/Warlord | Found Prototype Processor 20585 | -4/Warlord | Identified Exp. Targeting Computer 20591 | -4/Warlord | Found Prototype Reactor 20591 | -4/Warlord | Identified Vortex Chain Reactor 20644 | -4/Warlord | Spotted B-90 Cyclops 20644 | -4/Warlord | Spotted B-86 Titan 20681 | -4/Warlord | Lost 3 allies 20708 | -4/Warlord | Warlord forces counterattacked 20770 | -4/Warlord | Discovered new exit (range 14) 20783 | -4/Warlord | Lost 12 allies 20806 | -4/Warlord | Entered Proximity Caves 20806 | -3/Proximity Caves | Accompanied by 2 allies 20813 | -3/Proximity Caves | Spotter reported a threat 20893 | -3/Proximity Caves | Spotter reported a threat 20950 | -3/Proximity Caves | Spotter reported a threat 20952 | -3/Proximity Caves | Spotted B-86 Titan 20976 | -3/Proximity Caves | Attracted the attention of an 0b10 checkpoint 21261 | -3/Proximity Caves | Crushed by falling debris 21331 | -3/Proximity Caves | Discovered new exit (range 9) 21335 | -3/Proximity Caves | Build established: Wizard-Mutant 21335 | -3/Proximity Caves | Entered Research 21335 | -3/Research | Evolved 2 slots: Propulsion x2 21336 | -3/Research | Identified exit to Research 21339 | -3/Research | Loaded intel: 3 garrison access locations 21342 | -3/Research | Lost 3 parts (2n1w) 21554 | -3/Research | Lost 4 parts (4n) 21585 | -3/Research | Search patrols dispatched 21831 | -3/Research | Build established: Wizard-Ninja 22184 | -3/Research | Found Prototype Processor 22184 | -3/Research | Identified Exp. Target Analyzer 22190 | -3/Research | Found Prototype Device 22190 | -3/Research | Identified Exp. Focal Shield 22196 | -3/Research | Found Unknown Launcher 22196 | -3/Research | Identified Gamma Bomb Array 22329 | -3/Research | Fabricated Graviton Reactor (x1) 22738 | -3/Research | Build established: Hacker-Ninja 22766 | -3/Research | Repaired Lrn. Phase Cannon 22954 | -3/Research | Fabricated Electron Diverter? 23063 | -3/Research | Lost 3 parts (2n1w) 23386 | -3/Research | Repaired Exp. Utility Shielding 23457 | -3/Research | Discovered new exit (range 4) 23459 | -3/Research | Entered another Research area 23459 | -2/Research | Warlord forces began assault on 0b10 23459 | -2/Research | Evolved 2 slots: Utility x2 23569 | -2/Research | Research machine network offline 23695 | -2/Research | Discovered new exit (range 13) 23697 | -2/Research | Identified exit to Access 23747 | -2/Research | Entered Access 23747 | -1/Access | Evolved 2 slots: Propulsion x2 23833 | -1/Access | Identified exit to Surface 23929 | -1/Access | Build established: Wizard-Ninja 24310 | -1/Access | Spotted B-99 Colossus 24330 | -1/Access | Spotted B-99 Colossus 24497 | -1/Access | Search patrols dispatched 24509 | -1/Access | Spotted B-99 Colossus 24530 | -1/Access | Repaired Imp. Diametric Drive? 24801 | *** | Escaped! Last Messages --------------- 24664_ Q-thruster destroyed. 24665_ System corrupted: Enh. Nova Cannon failed to cycle. 24667_ Sml. Battery melted. 24667_ P-80 Master destroyed. 24671_ Acquired 31 matter. 24722_ ALERT: Rogue bot located, Programmers report to Access Zone 8A. 24739_ Impulse Thruster destroyed. 24755_ System corrupted: Matter fused (-5). 24766_ Acquired 5 matter. 24777_ A,P SMBY W=PNWEUXZOS 24784_ Q-thruster destroyed. 24796_ Door malfunctions. 24798_ Connecting with Terminal... >>Open(Door) Sealed Barrier opened. 24799_ The Access Shell folds into the floor. 24801_ System corrupted: Energy discharge (-68). [Achievement: True Flier] Map ----- +----------------------------------------------------+ | ?????????????????????????????????## Y" #### ##? | | ?????????????????????????????????## "" #### ##? | | ?????????????????????????????????## "" #### ##? | | ?????????????????????????????????## #### ##? | | ?????????????????????????????????## #### ### | | ?????????????????????????????????## #### ### | | ?????????????????????????????????## ! #### | | ?????????????????????????????????## #### ### | | ????????????????????????????????### #### " | | ???????############################ #### # | | ???????###########################"####/##### # | | ??????? k # | | ??????? k + ! | | ????????????###+##### ""####### # | | ???????????? ### ""####### !! # | | ???????????????????## ""##??### != # | | ???????????????????## T##?##BB ! # | | ???????????????????## ""##?##BB ### | | ??????????????????### ""####### ! | | ??????????????????### ""####### ### | | ??????????????????## ##??## #####+#### | | ??????????????????### ###??## # | | ??????????????????### ###??## # | | ???????????????????## ##???## / | | ???????????????????## ##???## # | | ???????????????????## @" ##???## # | | ???????????????????## "" ##???## # | | ???????????????????## ##???## # = | | ???????????????????## ##???## # | | ?????????????????Y?## ##???## #####+#### | | ???????????????????##""""""""""##???## ### # ### | | ???????????????????##"????????"##???## ##### #### | | ????????????????????????????????????## ### | | ??????????????????????"""???????????## + | | ????????????????????? ????????## # | | ???????????????????## BB BB??????## # | | ???????????????????## BB BB??????## # | | ???????????????????## ???????## + | | ???????????????????## ??????## # | | ???????????????????## ##??### # | | ?????????????????????? ####### # | | ??????????????????????## ################# # ! | | ??????????????????????## ### # ### | | ??????????????????????## ### # ### | | ??????????????????????## ### + ### | | ??????????????????????## ### = # ### | | ??????????????????????## ### + | | ??????????????????????## ### # | | ??????????????????????## ######"##########+#### | | ????????????########??## #####"######### # | +----------------------------------------------------+ Best States ------------- Heat Dissipation 94 Coolant Potential 120 Energy Generation 49 Energy Capacity 590 Matter Stores 300 Matter Capacity 300 Sight Range 23 Terrain Scan Range 16 Terrain Scan Density 10 ECM Strength 1 Jamming Range 16 Cloak Strength 4 Corruption Block 20 Armor Coverage 400 Propulsion Shielding 90 Utility Shielding 90 Melee Speed Boost 20 Evasion (%) 66 Melee Accuracy 6 Launcher Accuracy 30 Target Analysis 5 Offensive Hacking 48 Defensive Hacking 30 Authchip Count 1 Item Schematics ----------------- Med. Storage Unit | -10/Materials | Hacked Hacking Suite | -7/Factory | Hacked Cloaking Device | -7/Factory | Hacked Cld. VTOL Module | -7/Factory | Hacked Field Propulsion Drive | -7/Factory | Hacked Gravmag Array | -7/Factory | Hacked Imp. Hacking Suite | -7/Factory | Hacked Combat Drone Bay | -7/Data Miner | Free Lgt. Regenerative Plating | -7/Data Miner | Free Cld. Aerolev Unit | -7/Data Miner | Free Exp. Weapon Shielding | -7/Data Miner | Free Imp. Heavy Laser | -7/Data Miner | Free Nuclear Pulse Array | -7/Data Miner | Free Adv. Drone Bay | -7/Data Miner | Free Imp. Arc Projector | -7/Data Miner | Free Imp. Medium Treads | -7/Data Miner | Free Imp. Thermal Shield | -7/Data Miner | Free Adv. Hardlight Generator | -7/Data Miner | Free Adv. Thermal Shield | -7/Data Miner | Free Enh. Optical Array | -6/Factory | Hacked Adv. Hacking Suite | -6/Factory | Hacked Adv. Target Analyzer | -6/Factory | Hacked Adv. System Shield | -6/Factory | Hacked Imp. Transmission Jammer | -6/Factory | Hacked Adv. Plasma Cannon | -6/Factory | Hacked Imp. Focal Shield | -6/Zion | Archive Adv. Melee Analysis Suite | -6/Zion | Archive Recoil Nullifier | -6/Zion | Archive Energy Well | -6/Zion | Archive Antimatter Reactor | -6/Zion | Archive Focal Shield | -6/Zion | Archive Imp. Actuator Array | -6/Zion | Archive Disruptor Cannon | -6/Zion | Archive Imp. Particle Charger | -6/Zion | Archive Variable Charge Gun | -6/Zion | Archive Thermic Laser | -6/Zion | Archive Adv. Trap Extractor | -6/Zion | Archive Imp. KE Penetrator | -6/Zion | Archive Lgt. Particle Reactor | -5/Factory | Hacked Smartbomb Launcher | -5/Factory | Hacked Assault Drone Bay | -5/Zhirov | Free Exp. Heat Sink | -5/Zhirov | Free Exp. Optical Array | -5/Zhirov | Free Imp. Arc Thrower | -5/Zhirov | Free Exp. Hacking Suite | -4/Factory | Hacked Enh. Nova Cannon | -4/Factory | Hacked Vibroblade | -4/Factory | Scanalyzed Imp. Cloaking Device | -4/Factory | Hacked Plasma Lance | -4/Factory | Hacked Lgt. Fission Core | -4/Factory | Hacked Cld. Field Propulsion Drive | -4/Factory | Scanalyzed Cld. Cesium-ion Thruster | -4/Factory | Hacked Exp. System Shield | -4/Factory | Hacked Particle Reactor | -3/Research | Hacked Graviton Reactor | -3/Research | Hacked Electron Diverter | -3/Research | Hacked Robot Schematics ------------------ H-66 Slayer | -7/Data Miner | Free P-60 Hacker | -7/Data Miner | Free M-14 Sweeper | -7/Data Miner | Free A-15 Conveyor | -7/Data Miner | Free B-60 Warrior | -7/Data Miner | Free Y-64 Sentinel | -7/Data Miner | Free L-41 Fighter | -6/Zion | Archive E-15 Imp | -6/Zion | Archive G-50 Soldier | -6/Zion | Archive Fabricated ------------ Hacking Suite | x1 | -7/Factory Hacking Suite | x1 | -7/Factory Hacking Suite | x1 | -7/Factory Cld. VTOL Module | x1 | -7/Factory Imp. Hacking Suite | x1 | -7/Factory Imp. Hacking Suite | x1 | -7/Factory Imp. Hacking Suite | x1 | -7/Factory Cld. VTOL Module | x1 | -6/Factory Cld. VTOL Module | x1 | -6/Factory Adv. Hacking Suite | x1 | -6/Factory | Authchip Adv. Hacking Suite | x1 | -6/Factory Adv. System Shield | x1 | -6/Factory Imp. Transmission Jammer | x2 | -5/Factory | Authchip Cld. VTOL Module | x1 | -5/Factory Exp. Hacking Suite | x1 | -4/Factory | Authchip Exp. Hacking Suite | x1 | -4/Factory Plasma Lance | x1 | -4/Factory Exp. Hacking Suite | x1 | -4/Factory Plasma Lance | x1 | -4/Factory Cld. Cesium-ion Thruster | x1 | -4/Factory Graviton Reactor | x1 | -3/Research Electron Diverter | x1 | -3/Research Alien Tech Used ----------------- Integrated Dissipator Achievements -------------- No Signal Preemptive Strike True Flier Challenges ------------ None Game ------ Seed ResetHeavyThermoblaster Manual? 0 Play Time 07:51:31 Cumulative 159.3 hours Start 2024.09.19 @ 16:14:05 End 2024.10.06 @ 14:07:50 Sessions 13 Manual Loads 0 Difficulty Rogue Special Mode None Game No. 91 Rogue 78 Adventurer 13 Explorer 0 Win Type 0 Total 3 Types 3/0/0/0/0/0/0/0/0 Lore% 51 Gallery% 67 Achievement% 55 Wizard Run 0 Options --------- Layout 2 ASCII 0 Keyboard 1 Movement Numpad Keybinds 0 Fullscreen 2 Font 16/Swanston Map View 55x47 Zoom Use 0% Tactical HUD 1 Map Filters NONE Filters NONE Steam 0 RUN: 8331b078-8c80-49bc-87bb-55d1fb1dfb58